{"text_format":"2","workbook":"xlsx","n_sheets":8,"sheets":["прил.1","прил.3","прил5","прил6","прил7","прил8","прил12 ","прил13"],"not_rendered":{"charts":0,"images":0,"macros":0,"external_links":1,"defined_names":9,"comments":0,"pivot_tables":0},"unopened":[],"bounds":{"document_bytes":16777216,"sheet_cells":100000,"run_cost":"one","rows_first":2000,"rows_last":500,"rows_between":2000,"halvings":0,"cell_chars":16384,"cell_head_chars":4096},"cells_cut":0,"cells_raw":0,"read":"whole","date_system":"1900"}

{"sheet":"прил.1","index":0,"n_rows":126,"n_cols":7,"rows_kept":126,"cut":false,"hidden":false,"merged":[[8,6,9,6],[2,1,2,3],[5,0,6,3],[8,0,9,0],[8,1,8,2],[8,3,9,3],[8,5,9,5]]}
[]
[]
[]
[]
[]
["Прогнозируемые доходы бюджета Черемховского районного муниципального образования на 2012 год"]
[]
[]
["Наименование","Код бюджетной классификации",null,"Прогноз на 2012 год",null,"Прогноз на 2012 год ","отклонение"]
[null,"главного администратора доходов","доходов районного бюджета"]
["НАЛОГОВЫЕ И НЕНАЛОГОВЫЕ ДОХОДЫ","000","1 00 00000 00 0000 000",{"$f":"D12+D17+D26+D30+D33+D38+D40+D47+D52+D61","v":96019.348599999998},{"$f":"E12+E17+E26+E30+E33+E38+E40+E47+E52+E61","v":4360.0616},{"$f":"F12+F17+F26+F30+F33+F38+F40+F47+F52+F61","v":102843.3},{"$f":"F11-D11","v":6823.9514000000054}]
["НАЛОГИ НА ПРИБЫЛЬ, ДОХОДЫ","182","1 01 00000 00 0000 000",{"$f":"D13+D14+D15+D16","v":47100},{"$f":"E13+E14+E15+E16","v":124},51800,{"$f":"F12-D12","v":4700}]
["Налог на доходы физических лиц с доходов, источником которых является налоговый агент, за исключением доходов, в отношении которых исчисление и уплата налога осуществляются в соответствии со статьями 227,227¹ и 228 Налогового кодекса Российской Федерации","182","1 01 02010 01 0000 110",{"$f":"46926","v":46926},null,51600,{"$f":"F13-D13","v":4674}]
["Налог на доходы физических лиц с доходов, полученных от осуществления деятельности физическими лицами,зарегистрированными в качестве индивидуальных предпринимателей,нотариусов,занимающихся частной практикой,адвокатов,учредивших адвокатские кабинеты и других лиц, занимающихся частной практикой","182","1 01 02020 01 0000 110",50,0,50,0]
["Налог на доходы физических лиц с доходов,  полученных физическими лицами, не являющимися налоговыми резидентами ","182","1 01 02030 01 0000 110",124,124,147,23]
["Налог на доходы физических лиц в виде фиксированных авансовых платежей с доходов, полученных физическими лицами, являющимися иностанными гражданами, осуществляющими трудовую деятельность по найму у физических лиц на основании патента","182","1 01 02040 01 0000 110",0,null,3,3]
["НАЛОГИ НА СОВОКУПНЫЙ ДОХОД","182","1 05 00000 00 0000 000",{"$f":"D18+D24+D25","v":7310},{"$f":"E18+E24+E25","v":1281},{"$f":"F18+F24+F25","v":8784},1474]
["Налог, взимаемый в связи с применением упрощенной системы налогообложения ","182","1 05 01000 00 0000 110",{"$f":"D19+D20+D21+D22+D23","v":3229},{"$f":"E19+E20+E21+E22+E23","v":869},{"$f":"F19+F20+F21+F22+F23","v":3894},665]
["Налог, взимаемый с налогоплательщиков, выбравших в качестве объекта налогообложения  доходы","182","1 05 01010 01 0000 110",1240,null,1550,310]
["Налог, взимаемый с налогоплательщиков, выбравших в качестве объекта налогообложения доходы, уменьшенные на величину расходов","182","1 05 01020 01 0000 110",1320,200,1500,180]
["Налог, взимаемый с налогоплательщиков, выбравших в качестве объекта налогообложения доходы, уменьшенные на величину расходов (за налоговые периоды, истекшие до 1 января 2011 года)","182","1 05 01022 01 0000 110",60,60,85,25]
["Налог, взимаемый в виде стоимости патента в связи с применением упрощенной системы налогооблажения ","182","1 05 01041 02 0000 110",9,9,9,0]
["Минимальный налог, зачисляемый в бюджеты субьектов РФ","182","1 05 01050 01 0000 110",600,600,750,150]
["Единый налог на вмененный доход для отдельных видов деятельности","182","1 05 02000 02 0000 110",4000,406,4800,800]
["Единый сельскохозяйственный налог ","182","1 05 03000 01 0000 110",81,6,90,9]
["ГОСУДАРСТВЕННАЯ ПОШЛИНА","000","1 08 00000 00 0000 000",{"$f":"D27+D28+D29","v":1132},{"$f":"E27+E28+E29","v":522},{"$f":"F27+F28+F29","v":1122},-10]
["Государственная пошлина по делам, рассматриваемым в судах общей юрисдикции, мировыми судьями (за исключением Верховного Суда Российской Федерации)","182","1 08 03010 01 0000 110",290,null,230,-60]
["Государственная пошлина за совершение действий, связанных с лицензированием, с проведением аттестации в случаях, если такая аттестация предусмотрена законодательством Российской Федерации, зачисляемая в бюджеты муниципальных районов","917","1 08 07084 01 1000 110",842,522,892,50]
["Государственная пошлина за государственную регистрацию транспортных средств и иные юридически значимые действия, связанные с изменениями и выдачей документов на транспортные средства, выдачей регистрационных знаков, приемом квалификационных экзаменов на получение права на управление транспортными средствами","000","1 08 07141 01 0000 110",0,null,0,0]
["ЗАДОЛЖЕННОСТЬ И ПЕРЕРАСЧЕТЫ ПО ОТМЕНЕННЫМ НАЛОГАМ, СБОРАМ И ИНЫМ ОБЯЗАТЕЛЬНЫМ ПЛАТЕЖАМ","182","1 09 00000 00 0000 000",{"$f":"D31+D32","v":1},{"$f":"E31+E32","v":-18},{"$f":"F31+F32","v":10},9]
["Налог на имущество предприятий","182","1 09 04010 02 0000 110",1,-9,0.2,-0.8]
["Налог с продаж","182","1 09 06010 02 0000 110",0,-9,9.8000000000000007,9.8000000000000007]
["ДОХОДЫ ОТ ИСПОЛЬЗОВАНИЯ ИМУЩЕСТВА, НАХОДЯЩЕГОСЯ В ГОСУДАРСТВЕННОЙ И МУНИЦИПАЛЬНОЙ СОБСТВЕННОСТИ","000","1 11 00000 00 0000 000",{"$f":"D34+D37","v":10897.0486},{"$f":"E34+E37","v":1857.0616},{"$f":"F34+F37","v":12600},1702.9513999999999]
["Доходы, получаемые в виде арендной  платы за земельные участки,государственная собственность на которые не разграничена и которые расположеныв границах поселений, а также средства от продажи права на заключение договоров аренды указанных земельных участков","000","1 11 05013 10 0000 120",{"$f":"D35+D36","v":7397.0486000000001},{"$f":"E35+E36","v":1257.0616},{"$f":"F35+F36","v":8800},1402.9513999999999]
["Доходы, получаемые в виде арендной платы за земельные участки, государственная собственность на которые не разграничена и которые расположены в границах поселений, а также средства от продажи права на заключение договоров аренды указанных земельных участков","913","1 11 05013 10 0000 120",6647,1257,8000,1353]
["Доходы, получаемые в виде арендной  платы за земельные участки,государственная собственность на которые не разграничена и которые расположеныв границах поселений, а также средства от продажи права на заключение договоров аренды указанных земельных участков","950","1 11 05013 10 0000 120",750.04859999999996,6.1600000000000002E-2,800,49.951400000000035]
["Доходы от сдачи в аренду имущества, находящегося в оперативном управлении органов управления муниципальных районов и созданных ими учреждений (за исключением имущества муниципальных автономных учреждений)","913","1 11 05035 05 0000 120",3500,600,3800,300]
["ПЛАТЕЖИ ПРИ ПОЛЬЗОВАНИИ ПРИРОДНЫМИ РЕСУРСАМИ","048","1 12 00000 00 0000 000",{"$f":"D39","v":180},null,{"$f":"F39","v":170},-10]
["Плата за негативное воздействие на окружающую среду","048","1 12 01000 01 0000 120",180,null,170,-10]
["ДОХОДЫ ОТ ОКАЗАНИЯ ПЛАТНЫХ УСЛУГ И КОМПЕНСАЦИИ ЗАТРАТ ГОСУДАРСТВА","000","1 13 00000 00 0000 000",{"$f":"D41","v":7321.5},{"$f":"E41","v":0},{"$f":"F41","v":6351.5},-970]
["Прочие доходы от оказания платных услуг (работ) получателями средств  бюджетов муниципальных районов","000","1 13 01000 00 0000 130",{"$f":"D42+D43+D44+D45+D46","v":7321.5},{"$f":"E42+E43+E44+E45+E46","v":0},{"$f":"F42+F43+F44+F45+F46","v":6351.5},-970]
["Прочие доходы от оказания платных услуг (работ) получателями средств бюджетов муниципальных районов","907","113 01995 05 0000 130",6972,null,6000,-972]
["Прочие доходы от оказания платных услуг (работ) получателями средств бюджетов муниципальных районов (МКУК МКЦ АЧРМО)","919","113 01995 05 0000 130",85,null,85,0]
["Прочие доходы от оказания платных услуг (работ) получателями средств бюджетов муниципальных районов (МКУК РИК МУЗЕЙ)","920","113 01995 05 0000 130",{"$f":"20","v":20},0,22,2]
["Прочие доходы от оказания платных услуг (работ) получателями средств бюджетов муниципальных районов (МКУК МБЧР)","921","113 01995 05 0000 130",24.5,null,24.5,0]
["Прочие доходы от оказания платных услуг (работ) получателями средств бюджетов муниципальных районов (МКОУ ДОД ДШИ)","922","113 01995 05 0000 130",220,null,220,0]
["ДОХОДЫ ОТ ПРОДАЖИ МАТЕРИАЛЬНЫХ И НЕМАТЕРИАЛЬНЫХ АКТИВОВ","913","1 14 00000 00 0000 000",{"$f":"D48+D50","v":20716.8},{"$f":"E48+E50","v":594},{"$f":"F48+F50","v":20846.8},130]
["Доходы от реализации имущества, находящегося в государственной и муниципальной собственности (за исключением имущества автономных учреждений, а также имущества государственных и муниципальных унитарных предприятий, в том числе казенных)","913","1 14 02000 00 0000 000",{"$f":"D49","v":20246.8},{"$f":"E49","v":424},{"$f":"F49","v":20246.8},0]
["Доходы от реализации иного имущества, находящегося в собственности муниципальных районов (за исключением имущества муниципальных автономных учреждений, а также имущества муниципальных унитарных предприятий, в том числе казенных), в части реализации основных средств по указанному имуществу","913","1 14 02053 05 0000 410",20246.8,424,20246.8,0]
["Доходы от продажи земельных участков, находящихся в  государственной и муниципальной собственности (за исключением земельных участков автономных учреждений)","913","1 14 06000 00 0000 430",{"$f":"D51","v":470},{"$f":"E51","v":170},{"$f":"F51","v":600},130]
["Доходы от продажи земельных участков, государственная собственность на которые не разграничена и которые расположены в границах поселений","913","1 14 06013 10 0000 430",470,170,600,130]
["ШТРАФЫ, САНКЦИИ, ВОЗМЕЩЕНИЕ УЩЕРБА","000","1 16 00000 00 0000 000",{"$f":"D53+D54+D55+D56+D57+D58+D60","v":553},{"$f":"E53+E54+E55+E56+E57+E58+E60","v":0},{"$f":"F53+F54+F55+F56+F57+F58+F60+F59","v":628},75]
["Денежные взыскания (штрафы) за нарушение законодательства о налогах и сборах","182","1 16 03000 01 0000 140",37,null,47,10]
["Денежные взыскания (штрафы) за нарушение  законодательства о применении контрольно-кассовой техники при осуществлении наличных денежных расчетов и (или) расчетов с использованием платежных карт","182","1 16 06000 01 0000 140",0,-11,0,0]
["Денежные взыскания (штрафы) за административные правонарушения в области государственного регулирования производства и оборота этилового спирта, алкогольной и спиртосодержащей продукции","000","1 16 08000 01 0000 140",0,-1,3.5,3.5]
["Денежные взыскания (штрафы) за нарушение законодательства о недрах, об особо охраняемых природных территориях, об охране и использовании животного мира, об экологической экспертизе, в области охраны окружающей среды, земельного законодательства","000","1 16 25000 01 0000 140",45,8,63,18]
["Денежные взыскания (штрафы) за нарушение законодательства в области обеспечения санитарно- эпидемиологического благополучия человека и законодательства в сфере защиты прав потребителей","141","1 16 28000 01 0000 140",0,-12,0,0]
["Денежные взыскания (штрафы) за административные правонарушения в области дорожного движения","188","1 16 30014 01 0000 140",28,28,29,1]
["Денежные взыскания (штрафы) за нарушение законодательства РФ об административных правонарушениях, предусмотренные статьей 20.25 Кодекса РФ об административных правонарушений","188","1 16 43000 01 0000 140",0,null,2,2]
["Прочие поступления от денежных взысканий (штрафов) и иных сумм в возмещение ущерба, зачисляемые в бюджеты муниципальных районов","000","1 16 90050 05 0000 140",443,-12,483.5,40.5]
["ПРОЧИЕ НЕНАЛОГОВЫЕ ДОХОДЫ","000","1 17 00000 00 0000 000",{"$f":"D62+D63","v":808},null,{"$f":"F62+F63","v":531},-277]
["Невыясненные поступления","000","1 17 01000 00 0000 180",0,null,0,0]
["Прочие неналоговые доходы","000","1 17 05000 00 0000 180",808,null,531,-277]
["БЕЗВОЗМЕЗДНЫЕ ПОСТУПЛЕНИЯ","000","2 00 00000 00 0000 000",{"$f":"D65+D120+D122","v":552756.25140000007},{"$f":"E65+E120+E122","v":{"$error":"#REF!"}},{"$f":"F65+F120+F122","v":551855.15140000009},-901.09999999997672]
["БЕЗВОЗМЕЗДНЫЕ ПОСТУПЛЕНИЯ ИЗ ДРУГИХ БЮДЖЕТОВ БЮДЖЕТНОЙ СИСТЕМЫ РФ","000","2 02 00000 00 0000 151",{"$f":"D66+D69+D87+D105","v":548097.45140000002},{"$f":"E66+E69+E87+E105","v":{"$error":"#REF!"}},{"$f":"F66+F69+F87+F105","v":546196.35140000004},-1901.0999999999767]
["ДОТАЦИИ БЮДЖЕТАМ МУНИЦИПАЛЬНЫХ ОБРАЗОВАНИЙ","000","2 02 01000 00 0000 151",{"$f":"D67+D68","v":128485},{"$f":"E67+E68","v":0},{"$f":"F67+F68","v":128485},0]
["Дотации муниципальным районам на выравнивание уровня бюджетной  обеспеченности","910","2 02 01001 05 0000 151",115567,null,115567,0]
["Дотации муниципальным районам на поддержку мер  по обеспечению сбалансированности  бюджетов","910","2 02 01003 05 0000 151",12918,null,12918,0]
["СУБСИДИИ БЮДЖЕТАМ МУНИЦИПАЛЬНЫХ ОБРАЗОВАНИЙ","000","2 02 02000 00 0000 151",{"$f":"D70+D71+D72+D74+D73","v":95734.68},{"$f":"E70+E71+E72+E74+E73+#REF!","v":{"$error":"#REF!"}},{"$f":"F70+F71+F72+F74+F73","v":93221.58},-2513.0999999999913]
["Федеральная программа \"Молодым семьям - доступное жилье на 2005-2019 годы\"","917","2 02 02051 05 0000 151",166.82400000000001,null,166.82400000000001,0]
["Долгосрочная целевая программа \"Энергосбережение и повышение энергетической эффективности на территории Иркутской области на 2011-2015 годы и на период до 2020 года","910","2 02 02150 05 0000 151",471.4,null,471.4,0]
["Областная государственная социальная программа \"Молодым семьям- доступное жилье\" на 2005-2019 годы\"","917","2 02 02008 05 0000 151",190.65600000000001,null,190.65600000000001,0]
["Долгосрочная целевая программа «Поддержка и развитие малого и среднего предпринимательства в Иркутской области» на 2011-2012 годы (за счет федерального бюджета)","917","2 02 02009 05 0000 151",240,240,240,0]
["Прочие субсидии","000","2 02 02999 05 0000 151",{"$f":"D75+D76+D77+D78+D79+D80+D82+D84+D83+D85","v":94665.799999999988},{"$f":"E75+E76+E77+E78+E79+E80+E82+E84+E83+E85","v":36739.599999999999},{"$f":"F75+F76+F77+F78+F79+F80+F82+F84+F83+F85+F86","v":92152.7},-2513.0999999999913]
["Субсидии на выплату заработной платы с начислениями на нее педагогическим работникам муниципальных дошкольных образовательных учреждений","907","2 02 02999 05 0000 151",7995,4259,7995,0]
["Субсидия за счет средств долгосрочной целевой программы Иркутской области \"Повышение эффективности бюджетных расходов Иркутской области на 2011-2013 годы\"","910","2 02 02999 05 0000 151",33215,8399,33215,0]
["Погашение кредиторской задолженности учреждений, находящихся в ведении органов местного самоуправления муниципальных образований Иркутской области, по страховым взносам на обязательное пенсионное страхование, сложившейся за период с 1 января 2002 года до 31 декабря 2009 года, и по страховым взносам на обязательное пенсионное страхование, обязательное медицинское страхование и обязательное социальное страхование на случай временной нетрудоспособности и в связи с материнством за период 2010-2011 годы, а также пеней и штрафов, начисленных на задолженность 2010-2011 годов","910","2 02 02999 05 0000 151",1787,null,1787,0]
["Погашение реструктуризированной кредиторской задолженности учреждений, находящихся в ведении органов местного самоуправления муниципальных образований Иркутской области, по страховым взносам на обязательное пенсионное страхование, сложившейся за период с 1 января 2002 года до 31 декабря 2009 года, и по страховым взносам на обязательное пенсионное страхование, обязательное медицинское страхование и обязательное социальное страхование на случай временной нетрудоспособности и в связи с материнством за период 2010-2011 годы, а также пеней и штрафов, начисленных на задолженность 2010-2011 годов","910","2 02 02999 05 0000 151",36982.5,16444.2,36982.5,0]
["Долгосрочная целевая программа \"Социальное развитие села Иркутской области на 2011-2014 годы\"","907","2 02 02999 05 0000 151",0,-3093,0,{"$f":"F79-D79","v":0}]
["Долгосрочная целевая программа Иркутской области \"100 модельных домов культуры Приангарью\" на 2011-2014 годы","917","2 02 02999 05 0000 151",1000,null,1000,0]
[{"$nulls":6},0]
["Долгосрочная целевая программа  Иркутской области «Организация и обеспечение отдыха и оздоровления детей в Иркутской области на 2012-2014 годы» ","907","2 02 02999 05 0000 151",2384.9,null,2384.9,0]
["Долгосрочная целевая программа поддержки и развития учреждений дошкольного образования в Иркутской области  на 2009-2014 годы» ","907","2 02 02999 05 0000 151",10670.4,10670.4,7857.3,-2813.0999999999995]
["Создание условий для оказания медицинской помощи населению на территории  муниципального района (городского округа) Иркутской области в соответствии с территориальной программой  государственных гарантий оказания гражданам Российской Федерации бесплатной медицинской помощи в Иркутской области на 2012 год, утвержденной постановлением Правительства Иркутской области от 30 декабря 2011 года №427-пп, и Законом Иркутской области от 5 марта 2010г. №4-ОЗ \"Об отдельных вопросах здравоохранения в Иркутской области\"","910","2 02 02999 05 0000 151",571,null,571,0]
["Долгосрочная целевая программа «Поддержка и развитие малого и среднего предпринимательства в Иркутской области» на 2011-2012 годы (за счет областного бюджета)","917","2 02 02999 05 0000 151",60,60,60,0]
["Подпрограмма «Подготовка объектов коммунальной инфраструктуры Иркутской области к отопительному сезону в 2011-2012 годах»","907","2 02 02999 05 0000 151",0,null,300,300]
["СУБВЕНЦИИ БЮДЖЕТАМ МУНИЦИПАЛЬНЫХ ОБРАЗОВАНИЙ","000","2 02 03000 00 0000 151",{"$f":"D89+D90+D91+D93+D94+D95+D96+D97+D98+D99+D100+D101+D102+D103","v":295311.71000000002},{"$f":"E89+E90+E91+E93+E94+E95+E96+E97+E98+E99+E100+E101+E102+E103","v":-3690.8100000000013},{"$f":"F89+F90+F91+F93+F94+F95+F96+F97+F98+F99+F100+F101+F102+F103","v":295923.71000000002},612]
["Субвенции бюджетам муниципальных районов на осуществление полномочий по подготовке проведения статистических переписей","917","2 02 03002 05 0000 151",0,null,0,0]
["Субвенции бюджетам  муниципальных районов на составление списков кандидатов в присяжные заседатели федеральных судов общей юрисдикции в Российской Федерации","917","2 02 03007 05 0000 151",7.52,null,7.52,0]
["Субвенции бюджетам на ежемесячное денежное вознаграждение за классное руководство","907","2 02 03021 05 0000 151",5162.3,null,5162.3,0]
["Субвенции бюджетам муниципальных образований на предоставление гражданам субсидий на оплату жилого помещения и коммунальных услуг","918","2 02 03022 05 0000 151",8707,58.8,7129,-1578]
["Субвенции местным бюджетам на выполнение переданных полномочий субъектов РФ","000","2 02 03024 05 0000 151",{"$f":"D93+D94+D95+D96+D97+D98+D99","v":37807.199999999997},{"$f":"E93+E94+E95+E96+E97+E98+E99","v":-12840.8},{"$f":"F93+F94+F95+F96+F97+F98+F99","v":37807.199999999997},0]
["Хранение, комплектование,  учет и использование архивных документов, относящихся к областной государственной собственности","917","2 02 03024 05 0000 151",1027,73,1027,0]
["Государственные    полномочия в области охраны труда","917","2 02 03024 05 0000 151",532.9,42.9,532.9,0]
["Определение персонального состава и обеспечение деятельности районных (городских), районных в городах комиссий по делам несовершеннолетних и защите их прав","917","2 02 03024 05 0000 151",1019.5,82.1,1019.5,0]
["Лицензирование розничной продажи алкогольной продукции","917","2 02 03024 05 0000 151",376.6,30.3,376.6,0]
["Определение персонального состава и обеспечение деятельности административных комиссий","917","2 02 03024 05 0000 151",532.9,42.9,532.9,0]
[" Предоставление мер социальной поддержки многодетным и малоимущим семьям","907","2 02 03024 05 0000 151",4145.3,null,4145.3,0]
[" Осуществление отдельных областных полномочий в области охраны здоровья граждан","910","2 02 03024 05 0000 151",30173,-13112,30173,0]
["Субвенции бюджетам муниципальных районов на обеспечение жилыми помещениями детей-сирот, детей, оставшихся без попечения родителей, а также детей, находящихся под опекой (попечительством), не имеющих закрепленного жилого помещения","913","2 02 03026 05 0000 151",1999.8,9.9,1999.8,0]
["Субвенции бюджетам муниципальных районов на обеспечение жилыми помещениями детей-сирот, детей, оставшихся без попечения родителей, а также детей, находящихся под опекой (попечительством), не имеющих закрепленного жилого помещения (федер.)","913","2 02 03026 05 0000 151",2070.29,2070.29,2070.29,0]
["Субвенция бюджетам муниципальных образований на денежные выплаты медицинскому персоналу фельдшерско-акушерских пунктов, врачам, фельдшерам и медицинским сестрам скорой медицинской помощи","910","2 02 03055 05 0000 151",4394,null,4933,539]
["Прочие субвенции","000","2 02 03999 05 0000 151",{"$f":"D104","v":235163.6},{"$f":"E104","v":7011},{"$f":"F104","v":236814.6},1651]
["Субвенция на обеспечение государственных гарантий прав граждан на получение общедоступного и бесплатного дошкольного, начального общего, основного общего, среднего (полного) общего образования, а также дополнительного образования в общеобразовательных учреждениях","907","2 02 03999 05 0000 151",235163.6,7011,236814.6,1651]
["ИНЫЕ МЕЖБЮДЖЕТНЫЕ ТРАНСФЕРТЫ","000","2 02 04000 00 0000 151",{"$f":"D106+D111+D113+D114+D112+D118","v":28566.061400000002},{"$f":"E106+E111+E113+E114+E112+E118","v":-1046.0595999999998},{"$f":"F106+F111+F113+F114+F112+F118","v":28566.061400000002},0]
["Межбюджетные трансферты, передаваемые бюджетам муниципальных районов из бюджетов поселений на осуществление части полномочий по решению вопросов местного значения в соответствии с заключенными соглашениями","000","2 02 04014 05 0000 151",{"$f":"D107+D108+D109+D110","v":22276.482400000001},{"$f":"E107+E108+E109+E110","v":3415.5614},{"$f":"F107+F108+F109+F110","v":22276.482400000001},0]
["Межбюджетные трансферты, передаваемые бюджетам муниципальных районов из бюджетов поселений на осуществление части полномочий по решению вопросов местного значения в соответствии с заключенными соглашениями","910","2 02 04014 05 0000 151",959.64099999999996,null,959.64099999999996,0]
["Межбюджетные трансферты, передаваемые бюджетам муниципальных районов из бюджетов поселений на осуществление части полномочий по решению вопросов местного значения в соответствии с заключенными соглашениями (правила землепользования)","918","2 02 04014 05 0000 151",2780.4600399999999,2780.4600399999999,2780.4600399999999,0]
["Межбюджетные трансферты, передаваемые бюджетам муниципальных районов из бюджетов поселений на осуществление части полномочий по решению вопросов местного значения в соответствии с заключенными соглашениями (генплан 5%)","918","2 02 04014 05 0000 151",930.60136,930.60136,930.60136,0]
["Межбюджетные трансферты, передаваемые бюджетам муниципальных районов из бюджетов поселений на осуществление части полномочий по решению вопросов местного значения в соответствии с заключенными соглашениями (генплан )","918","2 02 04014 05 0000 151",17605.78,-295.5,17605.78,0]
["Межбюджетные трансферты, передаваемые бюджетам муниципальных районов на комплектование книжных фондов библиотек муниципальных образований (областной бюджет)","910","2 02 04025 05 0000 151",150,null,150,0]
["Межбюджетные трансферты, передаваемые бюджетам муниципальных районов на комплектование книжных фондов библиотек муниципальных образований (федеральный бюджет)","910","2 02 04025 05 0000 151",281,null,281,0]
["Межбюджетные трансферты на укрепление материально-технической базы медицинских учреждений","910","2 02 04034 05 0001 151",4935,-4626.2,4935,0]
["Межбюджетные трансферты на внедрение современных информационных систем в здравоохранение ","910","2 02 04034 05 0002 151",759,null,759,0]
["Прочие межбюджетные трансферты, передаваемые бюджетам муниципальных районов","000","2 02 04999 05 0000 151",{"$f":"D116+D117","v":0},null,{"$f":"F116+F117","v":0},0]
["Дотации на возмещ.расходов местных бюджетов в связи с предоставлением льгот по оплате жилого помещения и коммунальных услуг педагогическим работникам, проживающим в сельской местности, рабочих поселках (пгт) и работающим в муниц.образоват.учреждениях","907","2 02 04999 05 0000 151",0,null,0,0]
["Межбюджетные трансферты в целях финансовой поддержки муниципальных образований Иркутской области, осуществляющих эффективное управление бюджетными средствами ","910","2 02 04999 05 0000 151",0,null,0,0]
["ПРОЧИЕ МЕЖБЮДЖЕТНЫЕ ТРАНСФЕРТЫ","000","2 02 04999 00 0000 151",164.57900000000001,164.57900000000001,164.57900000000001,0]
["Резервные фонды исполнительных органов государственной власти субъектов Российской Федерации","917","2 02 04999 05 0000 151",164.57900000000001,164.57900000000001,164.57900000000001,0]
["ПРОЧИЕ БЕЗВОЗМЕЗДНЫЕ ПОСТУПЛЕНИЯ","000","2 07 00000 00 0000 180",{"$f":"D121","v":4810},{"$f":"E121","v":1000},{"$f":"F121","v":5810},1000]
["Прочие безвозмездные поступления в бюджеты муниципальных районов","000","2 07 05000 05 0000 180",4810,{"$f":"1000","v":1000},5810,1000]
["ВОЗВРАТ ОТСТАКОВ СУБСИДИЙ И СУБВЕНЦИЙ","000","2 19 00000 00 0000 000",-151.19999999999999,null,-151.19999999999999,0]
["Возврат остатков субсидий и субвенций из бюджетов муниципальных районов","910","2 19 05000 05 0000 180",-151.19999999999999,null,-151.19999999999999,0]
["ИТОГО ДОХОДОВ","000","8 50 00000 00 0000 000",{"$f":"D64+D11","v":648775.60000000009},{"$f":"E64+E11","v":{"$error":"#REF!"}},{"$f":"F64+F11","v":654698.45140000014},5922.8514000000432]
[]
["Начальник финансового управления",null,null,"Ю.Н. Гайдук ",null,"Ю.Н. Гайдук"]

{"sheet":"прил.3","index":1,"n_rows":134,"n_cols":3,"rows_kept":134,"cut":false,"hidden":false,"merged":[[5,0,5,2],[7,0,7,1],[7,2,8,2]]}
[]
[]
[]
[]
[]
["Перечень администраторов доходов бюджета Черемховского районного муниципального образования  органов местного самоуправления и подведомственных им учреждений"]
[]
["Код бюджетной классификации РФ",null,"Наименование главного администратора доходов районного бюджета"]
["главного администратора доходов","доходов районного бюджета"]
[]
[904,null,"Отдел по культуре и библиотечному обслуживанию администрации Черемховского районного муниципального образования"]
[904,"1 17 01050 05 0000 180","Невыясненные поступления, зачисляемые в бюджеты муниципальных районов"]
[904,"1 17 05050 05 0000 180","Прочие неналоговые доходы бюджетов муниципальных районов"]
[904,"2 07 05000 05 0000 180","Прочие безвозмездные поступления в бюджеты муниципальных районов"]
[907,null,"Отдел образования администрации Черемховского районного муниципального образования"]
[907,"1 13 01995 05 0000 130","Прочие доходы от оказания платных услуг (работ) получателями средств бюджетов муниципальных районов"]
[907,"1 13 02995 05 0000 130","Прочие доходы от компенсации затрат бюджетов муниципальных районов"]
[907,"1 17 01050 05 0000 180","Невыясненные поступления, зачисляемые в бюджеты муниципальных районов"]
[907,"1 17 05050 05 0000 180","Прочие неналоговые доходы бюджетов муниципальных районов"]
[907,"2 02 01999 05 0000 151","Прочие дотации бюджетам муниципальных районов"]
[907,"2 02 02022 05 0000 151","Субсидии бюджетам муниципальных образований на внедрение инновационных образовательных программ"]
[907,"2 02 02999 05 0000 151","Долгосрочная целевая программа \"Социальное развитие села Иркутской области на 2012-2014 годы\""]
[907,"2 02 02999 05 0000 151","Прочие субсидии бюджетам муниципальных районов"]
[907,"2 02 03021 05 0000 151","Субвенции бюджетам муниципальных районов на ежемесячное денежное вознаграждение за классное руководство"]
[907,"2 02 03024 05 0000 151","Субвенции бюджетам муниципальных районов на выполнение передаваемых полномочий субъектов РФ"]
[907,"2 02 03026 05 0000 151","Субвенции бюджетам муниципальных районов на обеспечение жилыми помещениями детей-сирот, детей, оставшихся без попечения родителей, а также детей, находящихся под опекой (попечительством), не имеющих закрепленного жилого помещения"]
[907,"2 02 03999 05 0000 151","Прочие субвенции бюджетам муниципальных районов"]
[907,"2 02 04999 05 0000 151","Прочие межбюджетные трансферты, передаваемые бюджетам муниципальных районов"]
[907,"2 07 05000 05 0000 180","Прочие безвозмездные поступления в бюджеты муниципальных районов"]
[910,null,"Финансовое управление Администрации Черемховского районного муниципального образования"]
[910,"1 17 01050 05 0000 180","Невыясненные поступления, зачисляемые в бюджеты муниципальных районов"]
[910,"1 17 05050 05 0000 180","Прочие неналоговые доходы бюджетов муниципальных районов"]
[910,"2 02 01001 05 0000 151","Дотации бюджетам муниципальных районов на выравнивание уровня бюджетной обеспеченности"]
[910,"2 02 01003 05 0000 151","Дотации бюджетам муниципальных районов на поддержку мер по обеспечению сбалансированности бюджетов"]
[910,"2 02 01999 05 0000 151","Прочие дотации бюджетам муниципальных районов"]
[910,"2 02 02008 05 0000 151","Субсидии бюджетам муниципальных районов на обеспечение жильем молодых семей"]
[910,"2 02 02150 05 0000 151","Субсидии бюджетам муниципальных районов по программе \"Энергосбережение и повышение энергетической эффективности на территории Иркутской области на 2011-2015 годы и на период до 2020 года\""]
[910,"2 02 02999 05 0000 151","Создание условий для оказания медицинской помощи населению на территориии муниципального района Иркутской области в соответствии с территориальной программой государственных гарантий оказания гражданам РФ бесплатной медицинской помощи в Иркутской области на 2012 год, утвержденной постановлением Правительства Иркутской области от 30 декабря 2011 года №427--пп, и Законом Иркутской области от 5 марта 2010г. №4-ОЗ \"Об отдельных вопросах здравоохранения"]
[910,"2 02 02999 05 0000 151","Прочие субсидии бюджетам муниципальных районов"]
[910,"2 02 03024 05 0000 151"," Субвенция на осуществление отдельных областных полномочий в области охраны здоровья граждан"]
["910","2 02 03055 05 0000 151","Субвенция бюджетам муниципальных образований на денежные выплаты медицинскому персоналу фельдшерско-акушерских пунктов, врачам, фельдшерам и медицинским сестрам скорой медицинской помощи"]
[910,"2 02 03999 05 0000 151","Прочие субвенции бюджетам муниципальных районов"]
[910,"2 02 04014 05 0000 151","Межбюджетные трансферты, передаваемые бюджетам муниципальных районов из бюджетов поселений на осуществление части полномочий по решению вопросов местного значения в соответствии с заключенными соглашениями"]
["910","2 02 04034 05 0001 151","Межбюджетные трансферты на укрепление материально-технической базы медицинских учреждений"]
["910","2 02 04034 05 0002 151","Межбюджетные трансферты на внедрение современных информационных систем в здравоохранение "]
[910,"2 02 04025 05 0000 151","Межбюджетные трансферты, передаваемые бюджетам муниципальных районов на комплектование книжных фондов библиотек муниципальных образований"]
[910,"2 02 04999 05 0000 151","Прочие межбюджетные трансферты, передаваемые бюджетам муниципальных районов"]
[910,"2 07 05000 05 0000 180","Прочие безвозмездные поступления в бюджеты муниципальных районов"]
[910,"2 08 05000 05 0000 180","Перечисления из бюджетов муниципальных районов (в бюджеты муниципальных районов) для осуществления возврата (зачета) излишне уплаченных или излишне взысканных сумм налогов, сборов и иных платежей, а также сумм процентов за несвоевременное осуществление такого возврата и процентов, начисленных на излишне взысканные суммы"]
[910,"2 19 05000 05 0000 151","Возврат остатков субсидий и субвенций из бюджетов муниципальных районов"]
[913,null,"Комитет по управлению муниципальным имуществом администрации Черемховского районного муниципального образования"]
[913,"1 11 05013 10 0000 120","Доходы, получаемые в виде арендной платы за земельные участки, государственная собственность на которые не разграничена и которые расположены в границах поселений, а также средства от продажи права на заключение договоров аренды указанных земельных участков"]
[913,"1 11 05035 05 0000 120","Доходы от сдачи в аренду имущества, находящегося в оперативном управлении органов управления муниципальных районов и созданных ими учреждений (за исключением имущества муниципальных автономных учреждений)"]
[913,"1 14 02052 05 0000 410","Доходы от реализации имущества, находящегося в оперативном управлении учреждений, находящихся в ведении органов управления муниципальных районов (за исключением имущества муниципальных автономных учреждений), в части реализации основных средств по указанному иммуществу"]
[913,"1 14 02052 05 0000 440","Доходы от реализации имущества, находящегося в оперативном управлении учреждений, находящихся в ведении органов управления муниципальных районов (за исключением имущества муниципальных автономных учреждений), в части реализации материальных запасов по указанному имуществу"]
[913,"1 14 02053 05 0000 410","Доходы от реализации иного имущества, находящегося в собственности муниципальных районов (за исключением имущества муниципальных автономных учреждений, а также имущества муниципальных унитарных предприятий, в том числе казенных), в части реализации основных средств по указанному имуществу"]
[913,"1 14 02053 05 0000 440","Доходы от реализации иного имущества, находящегося в собственности муниципальных районов (за исключением имущества муниципальных автономных учреждений, а также имущества муниципальных унитарных предприятий, в том числе казенных), в части реализации материальных запасов по указанному имуществу"]
[913,"1 14 06013 10 0000 430","Доходы от продажи земельных участков, государственная собственность на которые не разграничена и которые расположены в границах поселений"]
[913,"1 14 06025 05 0000 430","Доходы от продажи земельных участков, находящихся в собственности муниципальных районов (за исключением земельных участков муниципальных автономных учреждений)"]
[913,"1 17 01050 05 0000 180","Невыясненные поступления, зачисляемые в бюджеты муниципальных районов"]
[913,"1 17 05050 05 0000 180","Прочие неналоговые доходы бюджетов муниципальных районов"]
[913,"2 02 03026 05 0000 151","Субвенции бюджетам муниципальных районов на обеспечение жилыми помещениями детей-сирот, детей, оставшихся без попечения родителей, а также детей, находящихся под опекой (попечительством), не имеющих закрепленного жилого помещения"]
[917,null,"Администрация Черемховского районного муниципального образования"]
[917,"1 08 07084 01 1000 110","Государственная пошлина за совершение действий, связанных с лицензированием, с проведением аттестации в случаях, если такая аттестация предусмотрена законодательством Российской Федерации, зачисляемая в бюджеты муниципальных районов"]
[917,"1 16 90050 05 0000 140","Прочие поступления от денежных взысканий (штрафов) и иных сумм в возмещение ущерба, зачисляемые в бюджеты муниципальных районов"]
[917,"1 17 01050 05 0000 180","Невыясненные поступления, зачисляемые в бюджеты муниципальных районов"]
[917,"1 17 05050 05 0000 180","Прочие неналоговые доходы бюджетов муниципальных районов"]
[917,"2 02 01999 05 0000 151","Прочие дотации бюджетам муниципальных районов"]
[917,"2 02 02008 05 0000 151","Субсидии бюджетам муниципальных районов на обеспечение жильем молодых семей "]
[917,"2 02 02009 05 0000 151","Субсидии на государственную поддержку малого и среднего предпринимательства, включая крестьянские (фермерские) хозяйства"]
[917,"2 02 02051 05 0000 151","Субсидии бюджетам муниципальных районов на обеспечение жильем молодых семей"]
[917,"2 02 02105 05 0000 151","Субсидии бюджетам муниципальных районов на проведение противоаварийных мероприятий в зданиях государственных и муниципальных общеобразовательных учреждений"]
[917,"2 02 02999 05 0000 151","Прочие субсидии бюджетам муниципальных районов"]
[917,"2 02 03002 05 0000 151","Субвенции бюджетам муниципальных районов на осуществление полномочий по подготовке проведения статистических переписей"]
["917","2 02 03007 05 0000 151","Субвенции бюджетам  муниципальных районов на составление списков кандидатов в присяжные заседатели федеральных судов общей юрисдикции в Российской Федерации"]
[917,"2 02 03022 05 0000 151","Субвенции бюджетам муниципальных образований на предоставление гражданам субсидий на оплату жилого помещения и коммунальных услуг"]
[917,"2 02 03024 05 0000 151","Субвенции бюджетам муниципальных районов на выполнение передаваемых полномочий субъектов РФ"]
[917,"2 02 03999 05 0000 151","Прочие субвенции бюджетам муниципальных районов"]
[917,"2 02 04014 05 0000 151","Межбюджетные трансферты, передаваемые бюджетам муниципальных районов из бюджетов поселений на осуществление части полномочий по решению вопросов местного значения в соответствии с заключенными соглашениями"]
[917,"2 02 04999 05 0000 151","Прочие межбюджетные трансферты, передаваемые бюджетам муниципальных районов"]
[917,"2 07 05000 05 0000 180","Прочие безвозмездные поступления в бюджеты муниципальных районов"]
[918,null,"Управление жилищно-коммунального хозяйства, строительства, транспорта, связи и экологии  администрации Черемховского районного муниципального образования"]
[918,"1 16 90050 05 0000 140","Прочие поступления от денежных взысканий (штрафов) и иных сумм в возмещение ущерба, зачисляемые в бюджеты муниципальных районов"]
[918,"1 17 01050 05 0000 180","Невыясненные поступления, зачисляемые в бюджеты муниципальных районов"]
[918,"1 17 05050 05 0000 180","Прочие неналоговые доходы бюджетов муниципальных районов"]
[918,"2 02 03022 05 0000 151","Субвенции бюджетам муниципальных образований на предоставление гражданам субсидий на оплату жилого помещения и коммунальных услуг"]
[918,"2 07 05000 05 0000 180","Прочие безвозмездные поступления в бюджеты муниципальных районов"]
[918,"2 02 04014 05 0000 151","Межбюджетные трансферты, передаваемые бюджетам муниципальных районов из бюджетов поселений на осуществление части полномочий по решению вопросов местного значения в соответствии с заключенными соглашениями"]
[919,null,"Муниципальное казенное учреждение культуры \"Межпоселенческий культурный центр администрации Черемховского районного муниципального образования\""]
[919,"1 13 01995 05 0000 130","Прочие доходы от оказания платных услуг (работ) получателями средств бюджетов муниципальных районов"]
[919,"1 13 02995 05 0000 130","Прочие доходы от компенсации затрат бюджетов муниципальных районов"]
[919,"1 17 01050 05 0000 180","Невыясненные поступления, зачисляемые в бюджеты муниципальных районов"]
[919,"1 17 05050 05 0000 180","Прочие неналоговые доходы бюджетов муниципальных районов"]
[919,"2 02 01999 05 0000 151","Прочие дотации бюджетам муниципальных районов"]
[919,"2 02 02999 05 0000 151","Прочие субсидии бюджетам муниципальных районов"]
[919,"2 02 03999 05 0000 151","Прочие субвенции бюджетам муниципальных районов"]
[919,"2 02 04999 05 0000 151","Прочие межбюджетные трансферты, передаваемые бюджетам муниципальных районов"]
[919,"2 07 05000 05 0000 180","Прочие безвозмездные поступления в бюджеты муниципальных районов"]
[920,null,"Муниципальное казенное учреждение культуры \"Районный историко-краеведческий музей\""]
[920,"1 13 01995 05 0000 130","Прочие доходы от оказания платных услуг (работ) получателями средств бюджетов муниципальных районов"]
[920,"1 13 02995 05 0000 130","Прочие доходы от компенсации затрат бюджетов муниципальных районов"]
[920,"1 17 01050 05 0000 180","Невыясненные поступления, зачисляемые в бюджеты муниципальных районов"]
[920,"1 17 05050 05 0000 180","Прочие неналоговые доходы бюджетов муниципальных районов"]
[920,"2 02 01999 05 0000 151","Прочие дотации бюджетам муниципальных районов"]
[920,"2 02 02999 05 0000 151","Прочие субсидии бюджетам муниципальных районов"]
[920,"2 02 03999 05 0000 151","Прочие субвенции бюджетам муниципальных районов"]
[920,"2 02 04999 05 0000 151","Прочие межбюджетные трансферты, передаваемые бюджетам муниципальных районов"]
[920,"2 07 05000 05 0000 180","Прочие безвозмездные поступления в бюджеты муниципальных районов"]
[921,null,"Муниципальное казенное учреждение культуры \"Межпоселенческая библиотека Черемховского района\""]
[921,"1 13 01995 05 0000 130","Прочие доходы от оказания платных услуг (работ) получателями средств бюджетов муниципальных районов"]
[921,"1 13 02995 05 0000 130","Прочие доходы от компенсации затрат бюджетов муниципальных районов"]
[921,"1 17 01050 05 0000 180","Невыясненные поступления, зачисляемые в бюджеты муниципальных районов"]
[921,"1 17 05050 05 0000 180","Прочие неналоговые доходы бюджетов муниципальных районов"]
[921,"2 02 01999 05 0000 151","Прочие дотации бюджетам муниципальных районов"]
[921,"2 02 04025 05 0000 151","Межбюджетные трансферты, передаваемые бюджетам муниципальных районов на комплектование книжных фондов библиотек муниципальных образований"]
[921,"2 02 02999 05 0000 151","Прочие субсидии бюджетам муниципальных районов"]
[921,"2 02 03999 05 0000 151","Прочие субвенции бюджетам муниципальных районов"]
[921,"2 02 04999 05 0000 151","Прочие межбюджетные трансферты, передаваемые бюджетам муниципальных районов"]
[921,"2 07 05000 05 0000 180","Прочие безвозмездные поступления в бюджеты муниципальных районов"]
[922,null,"Муниципальное казенное образовательное учреждение дополнительного образования детей \"Детская школа искусств поселка Михайловка\""]
[922,"1 13 01995 05 0000 130","Прочие доходы от оказания платных услуг (работ) получателями средств бюджетов муниципальных районов"]
[922,"1 13 02995 05 0000 130","Прочие доходы от компенсации затрат бюджетов муниципальных районов"]
[922,"1 17 01050 05 0000 180","Невыясненные поступления, зачисляемые в бюджеты муниципальных районов"]
[922,"1 17 05050 05 0000 180","Прочие неналоговые доходы бюджетов муниципальных районов"]
[922,"2 02 01999 05 0000 151","Прочие дотации бюджетам муниципальных районов"]
[922,"2 02 02999 05 0000 151","Прочие субсидии бюджетам муниципальных районов"]
[922,"2 02 03999 05 0000 151","Прочие субвенции бюджетам муниципальных районов"]
[922,"2 02 04999 05 0000 151","Прочие межбюджетные трансферты, передаваемые бюджетам муниципальных районов"]
[922,"2 07 05000 05 0000 180","Прочие безвозмездные поступления в бюджеты муниципальных районов"]
[923,null,"Контрольно-счетная палата Черемховского районного муниципального образования"]
[923,"1 17 01050 05 0000 180","Невыясненные поступления, зачисляемые в бюджеты муниципальных районов"]
[923,"1 17 05050 05 0000 180","Прочие неналоговые доходы бюджетов муниципальных районов"]
[]
["Начальник финансового управления",null,"Ю.Н. Гайдук"]

{"sheet":"прил5","index":2,"n_rows":440,"n_cols":6,"rows_kept":440,"cut":false,"hidden":false,"merged":[[8,0,9,0],[8,1,8,4],[8,5,9,5],[436,0,436,4],[6,0,6,5]]}
[]
[]
[]
[]
[]
[]
["Распределение  бюджетных ассигнований  на  2012 год по разделам, подразделам, целевым статьям и видам расходов в структуре расходов бюджета Черемховского районного муниципального образования"]
[]
["Наименование показателя","Код",null,null,null,"Сумма, тыс. руб."]
[null,"раздела","подраздела","целевой статьи","вида расходов"]
[1,2,3,4,5,6]
["ОБЩЕГОСУДАРСТВЕННЫЕ ВОПРОСЫ",1,0,0,0,77828.100000000006]
["Функционирование высшего должностного лица субъекта Российской Федерации и муниципального образования",1,2,0,0,2034.5]
["Руководство и управление в сфере установленных функций органов государственной власти субъектов Российской Федерации  и органов местного самоуправления",1,2,20000,0,2034.5]
["Глава муниципального образования",1,2,20300,0,2034.5]
["Выполнение функций органами местного самоуправления",1,2,20300,"500",2034.5]
["Функционирование законодательных (представительных) органов государственной власти и представительных органов муниципальных образований",1,3,0,0,1601.4]
["Руководство и управление в сфере установленных функций органов государственной власти субъектов Российской Федерации  и органов местного самоуправления",1,3,20000,0,1599.8]
["Центральный аппарат",1,3,20400,0,638.20000000000005]
["Выполнение функций органами местного самоуправления",1,3,20400,"500",638.20000000000005]
["Председатель представительного органа муниципального образования",1,3,21100,0,961.6]
["Выполнение функций органами местного самоуправления",1,3,21100,"500",961.6]
["Погашение кредиторской задолженности учреждений, находящихся в ведении органов местного самоуправления муниципальных образований Иркутской области, по единому социальному налогу, зачисляемому в федеральный бюджет, Фонд социального страхования Российской Федерации, Федеральный фонд обязательного медицинского страхования и территориальные фонды обязательного медицинского страхования",1,3,5900000,0,1.6]
["Выполнение функций органами местного самоуправления",1,3,5900000,"500",1.6]
["Погашение кредиторской задолженности учреждений, находящихся в ведении органов местного самоуправления муниципальных образований Иркутской области по налоговым платежам, включая пени и штрафы, начисленные на задолженность по налоговым платежам и (или) по пеням и штрафам, начисленным на задолженность по страховым взносам на обязательное пенсионное страхование за период 2002-2009 годов, и (или) реструктурированной задолженности по страховым взносам в государственные внебюджетные фонды, образовавшейся до 1 января 2001 года, и (или) реструктурированной задолженности по единому социальному налогу, зачисляемому в федеральный бюджет, бюджеты государственных внебюджетных фондов, образовавшейся с 1 января 2002 года до 31 декабря 2009 года",1,3,5940000,0,0]
["Выполнение функций органами местного самоуправления",1,3,5940000,"500",0]
["Функционирование Правительства Российской Федерации, высших исполнительных органов государственной власти субъектов Российской Федерации, местных администраций",1,4,0,0,28868.2]
["Руководство и управление в сфере установленных функций органов государственной власти субъектов Российской Федерации  и органов местного самоуправления",1,4,20000,0,28717.7]
["Центральный аппарат",1,4,20400,0,28717.7]
["Выполнение функций органами местного самоуправления",1,4,20400,"500",28717.7]
["Погашение кредиторской задолженности учреждений, находящихся в ведении органов местного самоуправления муниципальных образований Иркутской области, по единому социальному налогу, зачисляемому в федеральный бюджет, Фонд социального страхования Российской Федерации, Федеральный фонд обязательного медицинского страхования и территориальные фонды обязательного медицинского страхования",1,4,5900000,0,100.5]
["Выполнение функций органами местного самоуправления",1,4,5900000,"500",100.5]
["Погашение кредиторской задолженности учреждений, находящихся в ведении органов местного самоуправления муниципальных образований Иркутской области по налоговым платежам, включая пени и штрафы, начисленные на задолженность по налоговым платежам и (или) по пеням и штрафам, начисленным на задолженность по страховым взносам на обязательное пенсионное страхование за период 2002-2009 годов, и (или) реструктурированной задолженности по страховым взносам в государственные внебюджетные фонды, образовавшейся до 1 января 2001 года, и (или) реструктурированной задолженности по единому социальному налогу, зачисляемому в федеральный бюджет, бюджеты государственных внебюджетных фондов, образовавшейся с 1 января 2002 года до 31 декабря 2009 года",1,4,5940000,0,0]
["Выполнение функций органами местного самоуправления",1,4,5940000,"500",0]
["Целевые программы муниципальных образований",1,4,7950000,0,50]
["Долгосрочная целевая программа Черемховского районного муниципального образования \"Повышение эффективности бюджетных расходов Черемховского районного муниципального образования на 2012-2013 годы\"",1,4,7950200,0,50]
["Выполнение функций органами местного самоуправления",1,4,7950200,"500",50]
["Судебная система",1,5,0,0,7.5]
["Руководство и управление в сфере установленных функций",1,5,10000,0,7.5]
["Составление (изменение и дополнение) списков кандидатов в присяжные заседатели федеральных судов общей юрисдикции в Российской Федерации",1,5,14000,0,7.5]
["Выполнение функций органами местного самоуправления",1,5,14000,"500",7.5]
["Обеспечение деятельности финансовых, налоговых и таможенных органов и органов финансового (финансово-бюджетного) надзора",1,6,0,0,9208.2000000000007]
["Руководство и управление в сфере установленных функций органов государственной власти субъектов Российской Федерации  и органов местного самоуправления",1,6,20000,0,9158.2000000000007]
["Центральный аппарат",1,6,20400,0,8460.2999999999993]
["Выполнение функций органами местного самоуправления",1,6,20400,"500",8460.2999999999993]
["Руководитель контрольно-счетной палаты муниципального образования и его заместители",1,6,22500,0,697.9]
["Выполнение функций органами местного самоуправления",1,6,22500,"500",697.9]
["Погашение кредиторской задолженности учреждений, находящихся в ведении органов местного самоуправления муниципальных образований Иркутской области по налоговым платежам, включая пени и штрафы, начисленные на задолженность по налоговым платежам и (или) по пеням и штрафам, начисленным на задолженность по страховым взносам на обязательное пенсионное страхование за период 2002-2009 годов, и (или) реструктурированной задолженности по страховым взносам в государственные внебюджетные фонды, образовавшейся до 1 января 2001 года, и (или) реструктурированной задолженности по единому социальному налогу, зачисляемому в федеральный бюджет, бюджеты государственных внебюджетных фондов, образовавшейся с 1 января 2002 года до 31 декабря 2009 года",1,6,5940000,0,0]
["Выполнение функций органами местного самоуправления",1,6,5940000,"500",0]
["Целевые программы муниципальных образований",1,6,7950000,0,50]
["Долгосрочная целевая программа Черемховского районного муниципального образования \"Повышение эффективности бюджетных расходов Черемховского районного муниципального образования на 2012-2013 годы\"",1,6,7950200,0,50]
["Выполнение функций органами местного самоуправления",1,6,7950200,"500",50]
["Резервные фонды",1,11,0,0,0]
["Резервные фонды",1,11,700000,0,0]
["Резервные фонды местных администраций",1,11,700500,0,0]
["Прочие расходы",1,11,700500,"013",0]
["Другие общегосударственные вопросы",1,13,0,0,36108.300000000003]
["Руководство и управление в сфере установленных функций органов государственной власти субъектов Российской Федерации  и органов местного самоуправления",1,13,20000,0,18849]
["Центральный аппарат",1,13,20400,0,3289.3]
["Выполнение функций органами местного самоуправления",1,13,20400,"500",3289.3]
["Осуществление областных государственных полномочий по хранению, комплектованию, учету и использованию архивных документов, относящихся к государственной собственности Иркутской области",1,13,24000,0,1027]
["Выполнение функций органами местного самоуправления",1,13,24000,"500",1027]
["Осуществление областных государственных полномочий по определению персонального состава и обеспечению деятельности административных комиссий",1,13,24300,0,532.9]
["Выполнение функций органами местного самоуправления",1,13,24300,"500",532.9]
["Осуществление отдельных государственных полномочий в области производства и оборота этилового спирта, алкогольной и спиртосодержащей продукции",1,13,24400,0,376.6]
["Выполнение функций органами местного самоуправления",1,13,24400,"500",376.6]
["Осуществление отдельных областных государственных полномочий в области охраны труда",1,13,24500,0,532.9]
["Выполнение функций органами местного самоуправления",1,13,24500,"500",532.9]
["Обеспечение деятельности подведомственных учреждений",1,13,29900,0,13090.3]
["Выполнение функций казенными учреждениями",1,13,29900,"001",13090.3]
["Реализация государственных функций, связанных с общегосударственным управлением",1,13,920000,0,4306.7]
["Выполнение других обязательств государства",1,13,920300,0,4306.7]
["Выполнение функций органами местного самоуправления",1,13,920300,"500",4306.7]
["Учреждения по обеспечению хозяйственного обслуживания",1,13,930000,0,7889.4]
["Обеспечение деятельности подведомственных учреждений",1,13,939900,0,7889.4]
["Субсидии некоммерческим организациям",1,13,939900,"019",407.8]
["Субсидии бюджетным учреждениям на финансовое обеспечение муниципального задания на оказание муниципальных услуг (выполнение работ)",1,13,939900,"611",7481.2]
["Субсидии бюджетным учреждениям на иные цели",1,13,939900,"612",0.4]
["Погашение кредиторской задолженности учреждений, находящихся в ведении органов местного самоуправления муниципальных образований Иркутской области, по единому социальному налогу, зачисляемому в федеральный бюджет, Фонд социального страхования Российской Федерации, Федеральный фонд обязательного медицинского страхования и территориальные фонды обязательного медицинского страхования",1,13,5900000,0,33.4]
["Выполнение функций казенными учреждениями",1,13,5900000,"001",32.799999999999997]
["Выполнение функций органами местного самоуправления",1,13,5900000,"500",0.6]
["Погашение кредиторской задолженности учреждений, находящихся в ведении органов местного самоуправления муниципальных образований Иркутской области по налоговым платежам, включая пени и штрафы, начисленные на задолженность по налоговым платежам и (или) по пеням и штрафам, начисленным на задолженность по страховым взносам на обязательное пенсионное страхование за период 2002-2009 годов, и (или) реструктурированной задолженности по страховым взносам в государственные внебюджетные фонды, образовавшейся до 1 января 2001 года, и (или) реструктурированной задолженности по единому социальному налогу, зачисляемому в федеральный бюджет, бюджеты государственных внебюджетных фондов, образовавшейся с 1 января 2002 года до 31 декабря 2009 года",1,13,5940000,0,0]
["Выполнение функций казенными учреждениями",1,13,5940000,"001",0]
["Выполнение функций органами местного самоуправления",1,13,5940000,"500",0]
["Целевые программы муниципальных образований",1,13,7950000,0,5029.8]
["Выполнение функций органами местного самоуправления",1,13,7950000,"500",2795]
["Долгосрочная целевая программа Черемховского районного муниципального образования \"Повышение эффективности бюджетных расходов Черемховского районного муниципального образования на 2012-2013 годы\"",1,13,7950200,0,2234.8000000000002]
["Выполнение функций казенными учреждениями",1,13,7950200,"001",2234.8000000000002]
["НАЦИОНАЛЬНАЯ БЕЗОПАСНОСТЬ И ПРАВООХРАНИТЕЛЬНАЯ ДЕЯТЕЛЬНОСТЬ",3,0,0,0,0]
["Другие вопросы в области национальной безопасности и правоохранительной деятельности",3,14,0,0,0]
["Реализация других функций, связанных с обеспечением национальной безопасности и правоохранительной деятельности",3,14,2470000,0,0]
["Выполнение функций органами местного самоуправления",3,14,2470000,"500",0]
["НАЦИОНАЛЬНАЯ ЭКОНОМИКА",4,0,0,0,24637.3]
["Другие вопросы в области национальной экономики",4,12,0,0,24637.3]
["Мероприятия в области строительства, архитектуры и градостроительства",4,12,3380000,0,3711.1]
["Подготовка проектов генеральных планов муниципальных образований Черемховского районного муниципального образования",4,12,3380100,0,930.6]
["Выполнение функций органами местного самоуправления",4,12,3380100,"500",930.6]
["Подготовка проектов правил землепользования и застройки муниципальных образований Черемховского районного муниципального образования",4,12,3380200,0,2780.5]
["Выполнение функций органами местного самоуправления",4,12,3380200,"500",2780.5]
["Малое и среднее предпринимательство",4,12,3450000,0,240]
["Субсидии на государственную поддержку малого и среднего предпринимательства, включая крестьянские (фермерские) хозяйства",4,12,3450100,0,240]
["Субсидии юридическим лицам",4,12,3450100,"006",240]
["Региональные целевые программы",4,12,5220000,0,19130.2]
["Долгосрочная целевая программа «Поддержка и развитие малого и среднего предпринимательства в Иркутской области» на 2011-2012 годы",4,12,5222400,0,60]
["Субсидии юридическим лицам",4,12,5222400,"006",60]
["Долгосрочная целевая программа Иркутской области «Стимулирование жилищного строительства в Иркутской области на 2011-2015 годы»",4,12,5225700,0,19070.2]
["Подпрограмма \"Территориальное планирование муниципальных образований Иркутской области на 2011-2012 годы\"",4,12,5225701,0,19070.2]
["Выполнение функций органами местного самоуправления",4,12,5225701,"500",19070.2]
["Целевые программы муниципальных образований",4,12,7950000,0,1556]
["Субсидии юридическим лицам",4,12,7950000,"006",16]
["Выполнение функций органами местного самоуправления",4,12,7950000,"500",1540]
["ЖИЛИЩНО-КОММУНАЛЬНОЕ ХОЗЯЙСТВО",5,0,0,0,11372.1]
["Жилищное хозяйство",5,1,0,0,644.70000000000005]
["Поддержка жилищного хозяйства",5,1,3500000,0,644.70000000000005]
["Капитальный ремонт государственного жилищного фонда субъектов Российской Федерации и муниципального жилищного фонда",5,1,3500200,0,273.89999999999998]
["Субсидии юридическим лицам",5,1,3500200,"006",174.9]
["Выполнение функций органами местного самоуправления",5,1,3500200,"500",99]
["Мероприятия в области жилищного хозяйства",5,1,3500300,0,370.8]
["Выполнение функций органами местного самоуправления",5,1,3500300,"500",370.8]
["Коммунальное хозяйство",5,2,0,0,4295.5]
["Резервные фонды",5,2,700000,0,464.6]
["Резервные фонды исполнительных органов государственной власти субъектов Российской Федерации",5,2,700400,0,164.6]
["Выполнение функций органами местного самоуправления",5,2,700400,"500",164.6]
["Резервные фонды местных администраций",5,2,700500,0,300]
["Выполнение функций органами местного самоуправления",5,2,700500,"500",300]
["Поддержка коммунального хозяйства",5,2,3510000,0,3806.8]
["Мероприятия в области коммунального хозяйства",5,2,3510500,0,3806.8]
["Выполнение функций органами местного самоуправления",5,2,3510500,"500",3806.8]
["Региональные целевые программы",5,2,5220000,0,24.1]
["Долгосрочная целевая программа «Энергосбережение и повышение энергетической эффективности на территории Иркутской области на 2011-2015 годы и на период до 2020 года»",5,2,5225400,0,24.1]
["Иные межбюджетные трансферты",5,2,5225400,"017",24.1]
["Другие вопросы в области жилищно-коммунального хозяйства",5,5,0,0,6431.9]
["Руководство и управление в сфере установленных функций органов государственной власти субъектов Российской Федерации  и органов местного самоуправления",5,5,20000,0,6431.3]
["Центральный аппарат",5,5,20400,0,4741.3999999999996]
["Выполнение функций органами местного самоуправления",5,5,20400,"500",4741.3999999999996]
["Осуществление областных государственных полномочий по предоставлению гражданам субсидий на оплату жилых помещений и коммунальных услуг",5,5,24700,0,729.9]
["Содержание и обеспечение деятельности муниципальных служащих, осуществляющих областные государственные полномочия по предоставлению гражданам субсидий на оплату жилых помещений и коммунальных услуг",5,5,24701,0,729.9]
["Выполнение функций органами местного самоуправления",5,5,24701,"500",729.9]
["Обеспечение деятельности подведомственных учреждений",5,5,29900,0,960]
["Субсидии некоммерческим организациям",5,5,29900,"019",48.4]
["Субсидии бюджетным учреждениям на финансовое обеспечение муниципального задания на оказание муниципальных услуг (выполнение работ)",5,5,29900,"611",911.6]
["Субсидии бюджетным учреждениям на иные цели",5,5,29900,"612",0]
["Погашение кредиторской задолженности учреждений, находящихся в ведении органов местного самоуправления муниципальных образований Иркутской области, по единому социальному налогу, зачисляемому в федеральный бюджет, Фонд социального страхования Российской Федерации, Федеральный фонд обязательного медицинского страхования и территориальные фонды обязательного медицинского страхования",5,5,5900000,0,0.6]
["Выполнение функций органами местного самоуправления",5,5,5900000,"500",0.6]
["Погашение кредиторской задолженности учреждений, находящихся в ведении органов местного самоуправления муниципальных образований Иркутской области по налоговым платежам, включая пени и штрафы, начисленные на задолженность по налоговым платежам и (или) по пеням и штрафам, начисленным на задолженность по страховым взносам на обязательное пенсионное страхование за период 2002-2009 годов, и (или) реструктурированной задолженности по страховым взносам в государственные внебюджетные фонды, образовавшейся до 1 января 2001 года, и (или) реструктурированной задолженности по единому социальному налогу, зачисляемому в федеральный бюджет, бюджеты государственных внебюджетных фондов, образовавшейся с 1 января 2002 года до 31 декабря 2009 года",5,5,5940000,0,0]
["Выполнение функций органами местного самоуправления",5,5,5940000,"500",0]
["ОБРАЗОВАНИЕ",7,0,0,0,441656]
["Дошкольное образование",7,1,0,0,97602.6]
["Детские дошкольные учреждения",7,1,4200000,0,74226.7]
["Обеспечение деятельности подведомственных учреждений",7,1,4209900,0,74226.7]
["Выполнение функций казенными учреждениями",7,1,4209900,"001",74226.7]
["Региональные целевые программы",7,1,5220000,0,7979.3]
["Областная государственная целевая программа поддержки и развития учреждений дошкольного образования в Иркутской области на 2009-2014 годы",7,1,5223700,0,7857.3]
["Выполнение функций казенными учреждениями",7,1,5223700,"001",7857.3]
["Долгосрочная целевая программа «Энергосбережение и повышение энергетической эффективности на территории Иркутской области на 2011-2015 годы и на период до 2020 года»",7,1,5225400,0,122]
["Выполнение функций казенными учреждениями",7,1,5225400,"001",122]
["Выплата заработной платы с начислениями на нее педагогическим работникам муниципальных дошкольных образовательных учреждений и муниципальных учреждений дополнительного образования",7,1,5890000,0,5719]
["Выполнение функций казенными учреждениями",7,1,5890000,"001",5719]
["Погашение кредиторской задолженности учреждений, находящихся в ведении органов местного самоуправления муниципальных образований Иркутской области, по единому социальному налогу, зачисляемому в федеральный бюджет, Фонд социального страхования Российской Федерации, Федеральный фонд обязательного медицинского страхования и территориальные фонды обязательного медицинского страхования",7,1,5900000,0,591.29999999999995]
["Выполнение функций казенными учреждениями",7,1,5900000,"001",591.29999999999995]
["Погашение кредиторской задолженности учреждений, находящихся в ведении органов местного самоуправления муниципальных образований Иркутской области по налоговым платежам, включая пени и штрафы, начисленные на задолженность по налоговым платежам и (или) по пеням и штрафам, начисленным на задолженность по страховым взносам на обязательное пенсионное страхование за период 2002-2009 годов, и (или) реструктурированной задолженности по страховым взносам в государственные внебюджетные фонды, образовавшейся до 1 января 2001 года, и (или) реструктурированной задолженности по единому социальному налогу, зачисляемому в федеральный бюджет, бюджеты государственных внебюджетных фондов, образовавшейся с 1 января 2002 года до 31 декабря 2009 года",7,1,5940000,0,0]
["Выполнение функций казенными учреждениями",7,1,5940000,"001",0]
["Целевые программы муниципальных образований",7,1,7950000,0,9086.2999999999993]
["Мероприятия в сфере образования",7,1,7950000,"022",987]
["Мероприятия по обеспечению пожарной безопасности",7,1,7950000,"450",1000]
["Мероприятия по повышению энергетической эффективности",7,1,7950000,"451",0]
["Долгосрочная целевая программа Черемховского районного муниципального образования \"Повышение эффективности бюджетных расходов Черемховского районного муниципального образования на 2012-2013 годы\"",7,1,7950200,0,7099.3]
["Выполнение функций казенными учреждениями",7,1,7950200,"001",7099.3]
["Общее образование",7,2,0,0,331383.40000000002]
["Руководство и управление в сфере установленных функций органов государственной власти субъектов Российской Федерации  и органов местного самоуправления",7,2,20000,0,236986.7]
["Обеспечение государственных гарантий прав граждан на получение общедоступного и бесплатного дошкольного, начального общего, основного общего, среднего (полного) общего образования, а также дополнительного образования в общеобразовательных учреждениях",7,2,25000,0,236986.7]
["Выполнение функций казенными учреждениями",7,2,25000,"001",236986.7]
["Школы - детские сады, школы начальные, неполные средние и средние",7,2,4210000,0,47870.1]
["Обеспечение деятельности подведомственных учреждений",7,2,4219900,0,47870.1]
["Выполнение функций казенными учреждениями",7,2,4219900,"001",47870.1]
["Учреждения по внешкольной работе с детьми",7,2,4230000,0,22019.200000000001]
["Обеспечение деятельности подведомственных учреждений",7,2,4239900,0,22019.200000000001]
["Выполнение функций казенными учреждениями",7,2,4239900,"001",22019.200000000001]
["Иные безвозмездные и безвозвратные перечисления",7,2,5200000,0,5162.3]
["Ежемесячное денежное вознаграждение за классное руководство",7,2,5200900,0,5162.3]
["Выполнение функций казенными учреждениями",7,2,5200900,"001",5162.3]
["Региональные целевые программы",7,2,5220000,0,1414.2]
["Долгосрочная целевая программа \"Социальное развитие села Иркутской области на 2011-2014 годы\"",7,2,5221800,0,789]
["Бюджетные инвестиции",7,2,5221800,"003",789]
["Долгосрочная целевая программа «Модернизация объектов коммунальной инфраструктуры Иркутской области на 2011-2013 годы»",7,2,5222000,0,300]
["Подпрограмма «Подготовка объектов коммунальной инфраструктуры Иркутской области к отопительному сезону в 2011-2013 годах»",7,2,5222001,0,300]
["Выполнение функций казенными учреждениями",7,2,5222001,"001",300]
["Долгосрочная целевая программа «Энергосбережение и повышение энергетической эффективности на территории Иркутской области на 2011-2015 годы и на период до 2020 года»",7,2,5225400,0,325.2]
["Выполнение функций казенными учреждениями",7,2,5225400,"001",325.2]
["Выплата заработной платы с начислениями на нее педагогическим работникам муниципальных дошкольных образовательных учреждений и муниципальных учреждений дополнительного образования",7,2,5890000,0,2276]
["Выполнение функций казенными учреждениями",7,2,5890000,"001",2276]
["Погашение кредиторской задолженности учреждений, находящихся в ведении органов местного самоуправления муниципальных образований Иркутской области, по единому социальному налогу, зачисляемому в федеральный бюджет, Фонд социального страхования Российской Федерации, Федеральный фонд обязательного медицинского страхования и территориальные фонды обязательного медицинского страхования",7,2,5900000,0,877.4]
["Выполнение функций казенными учреждениями",7,2,5900000,"001",877.4]
["Погашение кредиторской задолженности учреждений, находящихся в ведении органов местного самоуправления муниципальных образований Иркутской области по налоговым платежам, включая пени и штрафы, начисленные на задолженность по налоговым платежам и (или) по пеням и штрафам, начисленным на задолженность по страховым взносам на обязательное пенсионное страхование за период 2002-2009 годов, и (или) реструктурированной задолженности по страховым взносам в государственные внебюджетные фонды, образовавшейся до 1 января 2001 года, и (или) реструктурированной задолженности по единому социальному налогу, зачисляемому в федеральный бюджет, бюджеты государственных внебюджетных фондов, образовавшейся с 1 января 2002 года до 31 декабря 2009 года",7,2,5940000,0,0]
["Выполнение функций казенными учреждениями",7,2,5940000,"001",0]
["Целевые программы муниципальных образований",7,2,7950000,0,14777.5]
["Мероприятия в сфере образования",7,2,7950000,"022",1881.6]
["Мероприятия по обеспечению пожарной безопасности",7,2,7950000,"450",700]
["Мероприятия по повышению энергетической эффективности",7,2,7950000,"451",600]
["Долгосрочная целевая программа Черемховского районного муниципального образования \"Повышение эффективности бюджетных расходов Черемховского районного муниципального образования на 2012-2013 годы\"",7,2,7950200,0,11595.9]
["Выполнение функций казенными учреждениями",7,2,7950200,"001",11595.9]
["Молодежная политика и оздоровление детей",7,7,0,0,2615]
["Организационно-воспитательная работа с молодежью",7,7,4310000,0,106]
["Проведение мероприятий для детей и молодежи",7,7,4310100,0,106]
["Выполнение функций органами местного самоуправления",7,7,4310100,"500",106]
["Мероприятия по проведению оздоровительной кампании детей",7,7,4320000,0,24.1]
["Мероприятия по организации оздоровительной кампании детей",7,7,4320100,0,0]
["Мероприятия по организации оздоровительной кампании детей за счет средств местного бюджета",7,7,4320102,0,0]
["Выполнение функций казенными учреждениями",7,7,4320102,"001",0]
["Оплата стоимости набора продуктов питания для детей в организованных органами местного самоуправления оздоровительных лагерях с дневным пребыванием детей за счет средств областного бюджета",7,7,4320300,0,24.1]
["Оплата стоимости набора продуктов питания для детей в организованных органами местного самоуправления оздоровительных лагерях с дневным пребыванием детей за счет средств местного бюджета ",7,7,4320302,0,24.1]
["Выполнение функций казенными учреждениями",7,7,4320302,"001",24.1]
["Региональные целевые программы",7,7,5220000,0,2384.9]
["Долгосрочная целевая программа Иркутской области \"Организация и обеспечение отдыха и оздоровления детей в Иркутской области на 2012-2014гг.\"",7,7,5226200,0,2384.9]
["Выполнение функций казенными учреждениями",7,7,5226200,"001",2384.9]
["Целевые программы муниципальных образований",7,7,7950000,0,100]
["Выполнение функций органами местного самоуправления",7,7,7950000,"500",100]
["Другие вопросы в области образования",7,9,0,0,10055]
["Руководство и управление в сфере установленных функций органов государственной власти субъектов Российской Федерации  и органов местного самоуправления",7,9,20000,0,3723.5]
["Центральный аппарат",7,9,20400,0,3723.5]
["Выполнение функций органами местного самоуправления",7,9,20400,"500",3723.5]
["Учебно-методические кабинеты, централизованные бухгалтерии, группы хозяйственного обслуживания, учебные фильмотеки, межшкольные учебно-производственные комбинаты, логопедические пункты",7,9,4520000,0,6315.7]
["Обеспечение деятельности подведомственных учреждений",7,9,4529900,0,6315.7]
["Субсидии некоммерческим организациям",7,9,4529900,"019",193.6]
["Субсидии бюджетным учреждениям на финансовое обеспечение муниципального задания на оказание муниципальных услуг (выполнение работ)",7,9,4529900,"611",6011.8]
["Субсидии бюджетным учреждениям на иные цели",7,9,4529900,"612",110.3]
["Погашение кредиторской задолженности учреждений, находящихся в ведении органов местного самоуправления муниципальных образований Иркутской области, по единому социальному налогу, зачисляемому в федеральный бюджет, Фонд социального страхования Российской Федерации, Федеральный фонд обязательного медицинского страхования и территориальные фонды обязательного медицинского страхования",7,9,5900000,0,15.8]
["Выполнение функций органами местного самоуправления",7,9,5900000,"500",15.8]
["Погашение кредиторской задолженности учреждений, находящихся в ведении органов местного самоуправления муниципальных образований Иркутской области по налоговым платежам, включая пени и штрафы, начисленные на задолженность по налоговым платежам и (или) по пеням и штрафам, начисленным на задолженность по страховым взносам на обязательное пенсионное страхование за период 2002-2009 годов, и (или) реструктурированной задолженности по страховым взносам в государственные внебюджетные фонды, образовавшейся до 1 января 2001 года, и (или) реструктурированной задолженности по единому социальному налогу, зачисляемому в федеральный бюджет, бюджеты государственных внебюджетных фондов, образовавшейся с 1 января 2002 года до 31 декабря 2009 года",7,9,5940000,0,0]
["Выполнение функций органами местного самоуправления",7,9,5940000,"500",0]
["КУЛЬТУРА И КИНЕМАТОГРАФИЯ",8,0,0,0,20585.400000000001]
["Культура",8,1,0,0,19552.2]
["Учреждения культуры и мероприятия в сфере культуры и кинематографии",8,1,4400000,0,6637.2]
["Комплектование книжных фондов библиотек муниципальных образований и государственных библиотек городов Москвы и Санкт-Петербурга",8,1,4400200,0,431]
["Комплектование книжных фондов библиотек муниципальных образований и государственных библиотек городов Москвы и Санкт-Петербурга за счет средств федерального бюджета",8,1,4400201,0,281]
["Выполнение функций казенными учреждениями",8,1,4400201,"001",281]
["Комплектование книжных фондов библиотек муниципальных образований и государственных библиотек городов Москвы и Санкт-Петербурга за счет областного бюджета",8,1,4400202,0,150]
["Выполнение функций казенными учреждениями",8,1,4400202,"001",150]
["Обеспечение деятельности подведомственных учреждений",8,1,4409900,0,6206.2]
["Выполнение функций казенными учреждениями",8,1,4409900,"001",6206.2]
["Музеи и постоянные выставки",8,1,4410000,0,1389.6]
["Обеспечение деятельности подведомственных учреждений",8,1,4419900,0,1389.6]
["Выполнение функций казенными учреждениями",8,1,4419900,"001",1389.6]
["Библиотеки",8,1,4420000,0,8022.9]
["Обеспечение деятельности подведомственных учреждений",8,1,4429900,0,8022.9]
["Выполнение функций казенными учреждениями",8,1,4429900,"001",8022.9]
["Региональные целевые программы",8,1,5220000,0,1000]
["Долгосрочная целевая программа \"Социальное развитие села Иркутской области на 2011-2014 годы\"",8,1,5221800,0,0]
["Иные межбюджетные трансферты",8,1,5221800,"017",0]
["Долгосрочная целевая программа Иркутской области «100 модельных домов культуры Приангарью» на 2011-2013 годы",8,1,5225500,0,1000]
["Выполнение функций казенными учреждениями",8,1,5225500,"001",1000]
["Погашение кредиторской задолженности учреждений, находящихся в ведении органов местного самоуправления муниципальных образований Иркутской области, по единому социальному налогу, зачисляемому в федеральный бюджет, Фонд социального страхования Российской Федерации, Федеральный фонд обязательного медицинского страхования и территориальные фонды обязательного медицинского страхования",8,1,5900000,0,114.4]
["Выполнение функций казенными учреждениями",8,1,5900000,"001",114.4]
["Погашение кредиторской задолженности учреждений, находящихся в ведении органов местного самоуправления муниципальных образований Иркутской области по налоговым платежам, включая пени и штрафы, начисленные на задолженность по налоговым платежам и (или) по пеням и штрафам, начисленным на задолженность по страховым взносам на обязательное пенсионное страхование за период 2002-2009 годов, и (или) реструктурированной задолженности по страховым взносам в государственные внебюджетные фонды, образовавшейся до 1 января 2001 года, и (или) реструктурированной задолженности по единому социальному налогу, зачисляемому в федеральный бюджет, бюджеты государственных внебюджетных фондов, образовавшейся с 1 января 2002 года до 31 декабря 2009 года",8,1,5940000,0,0]
["Выполнение функций казенными учреждениями",8,1,5940000,"001",0]
["Целевые программы муниципальных образований",8,1,7950000,0,2388.1]
["Мероприятия по поддержке и развитию культуры, искусства, кинематографии",8,1,7950000,"023",998.3]
["Мероприятия по повышению энергетической эффективности",8,1,7950000,"451",100]
["Долгосрочная целевая программа Черемховского районного муниципального образования \"Повышение эффективности бюджетных расходов Черемховского районного муниципального образования на 2012-2013 годы\"",8,1,7950200,0,1289.8]
["Выполнение функций казенными учреждениями",8,1,7950200,"001",1289.8]
["Другие вопросы в области культуры, кинематографии",8,4,0,0,1033.2]
["Руководство и управление в сфере установленных функций органов государственной власти субъектов Российской Федерации  и органов местного самоуправления",8,4,20000,0,1033.2]
["Центральный аппарат",8,4,20400,0,1033.2]
["Выполнение функций органами местного самоуправления",8,4,20400,"500",1033.2]
["ЗДРАВООХРАНЕНИЕ",9,0,0,0,64270.5]
["Стационарная медицинская помощь",9,1,0,0,33926.400000000001]
["Руководство и управление в сфере установленных функций органов государственной власти субъектов Российской Федерации  и органов местного самоуправления",9,1,20000,0,17117.599999999999]
["Осуществление отдельных областных государственных полномочий в области охраны здоровья граждан",9,1,25200,0,17117.599999999999]
["Выполнение функций казенными учреждениями",9,1,25200,"001",2772.9]
["Субсидии бюджетным учреждениям на финансовое обеспечение муниципального задания на оказание муниципальных услуг (выполнение работ)",9,1,25200,"611",14344.7]
["Реализация региональных программ модернизации здравоохранения субъектов Российской Федерации и программ модернизации федеральных государственных учреждений",9,1,960000,0,2552.5]
["Реализация программ модернизации здравоохранения субъектов Российской Федерации в части укрепления материально-технической базы медицинских учреждений",9,1,960100,0,1793.5]
["Реализация программ модернизации здравоохранения субъектов Российской Федерации в части укрепления материально-технической базы медицинских учреждений за счет средств бюджета территориального фонда обязательного медицинского страхования граждан Иркутской области",9,1,960101,0,1793.5]
["Выполнение функций казенными учреждениями",9,1,960101,"001",0]
["Субсидии бюджетным учреждениям на иные цели",9,1,960101,"612",1793.5]
["Реализация программ модернизации здравоохранения субъектов Российской Федерации в части внедрения современных информационных систем в здравоохранение в целях перехода на полисы обязательного медицинского страхования единого образца",9,1,960200,0,759]
["Реализация программ модернизации здравоохранения субъектов Российской Федерации в части внедрения современных информационных систем в здравоохранении в целях перехода на полисы обязательного медицинского страхования единого образца за счет средств бюджета территориального фонда обязательного медицинского страхования граждан  Иркутской области",9,1,960201,0,759]
["Субсидии бюджетным учреждениям на иные цели",9,1,960201,"612",759]
["Больницы, клиники, госпитали, медико-санитарные части",9,1,4700000,0,11295.4]
["Субсидии бюджетным учреждениям на финансовое обеспечение муниципального задания на оказание муниципальных услуг (выполнение работ)",9,1,4700000,"611",5916.7]
["Субсидии бюджетным учреждениям на иные цели",9,1,4700000,"612",3543]
["Обеспечение деятельности подведомственных учреждений",9,1,4709900,0,1835.7]
["Выполнение функций казенными учреждениями",9,1,4709900,"001",1835.7]
["Погашение кредиторской задолженности учреждений, находящихся в ведении органов местного самоуправления муниципальных образований Иркутской области, по единому социальному налогу, зачисляемому в федеральный бюджет, Фонд социального страхования Российской Федерации, Федеральный фонд обязательного медицинского страхования и территориальные фонды обязательного медицинского страхования",9,1,5900000,0,52]
["Субсидии бюджетным учреждениям на иные цели",9,1,5900000,"612",52]
["Погашение кредиторской задолженности учреждений, находящихся в ведении органов местного самоуправления муниципальных образований Иркутской области по налоговым платежам, включая пени и штрафы, начисленные на задолженность по налоговым платежам и (или) по пеням и штрафам, начисленным на задолженность по страховым взносам на обязательное пенсионное страхование за период 2002-2009 годов, и (или) реструктурированной задолженности по страховым взносам в государственные внебюджетные фонды, образовавшейся до 1 января 2001 года, и (или) реструктурированной задолженности по единому социальному налогу, зачисляемому в федеральный бюджет, бюджеты государственных внебюджетных фондов, образовавшейся с 1 января 2002 года до 31 декабря 2009 года",9,1,5940000,0,0]
["Субсидии бюджетным учреждениям на финансовое обеспечение муниципального задания на оказание муниципальных услуг (выполнение работ)",9,1,5940000,"611",0]
["Субсидии бюджетным учреждениям на иные цели",9,1,5940000,"612",0]
["Целевые программы муниципальных образований",9,1,7950000,0,2908.9]
["Мероприятия по повышению энергетической эффективности",9,1,7950000,"451",0]
["Субсидии бюджетным учреждениям на финансовое обеспечение муниципального задания на оказание муниципальных услуг (выполнение работ)",9,1,7950000,"611",0]
["Долгосрочная целевая программа Черемховского районного муниципального образования \"Повышение эффективности бюджетных расходов Черемховского районного муниципального образования на 2012-2013 годы\"",9,1,7950200,0,2658.9]
["Выполнение функций казенными учреждениями",9,1,7950200,"001",0]
["Субсидии бюджетным учреждениям на финансовое обеспечение муниципального задания на оказание муниципальных услуг (выполнение работ)",9,1,7950200,"611",2658.9]
["Долгосрочная целевая программа \"Неотложные меры по борьбе с туберкулезом\" на 2012-2014 годы",9,1,7950300,0,50]
["Субсидии бюджетным учреждениям на финансовое обеспечение муниципального задания на оказание муниципальных услуг (выполнение работ)",9,1,7950300,"611",50]
["Долгосрочная целевая программа \"Сахарный диабет\" на 2012-2014 годы",9,1,7950400,0,150]
["Субсидии бюджетным учреждениям на финансовое обеспечение муниципального задания на оказание муниципальных услуг (выполнение работ)",9,1,7950400,"611",150]
["Долгосрочная целевая программа \"Анти-вич/спид\" на 2012-2014 годы",9,1,7950500,0,50]
["Субсидии бюджетным учреждениям на финансовое обеспечение муниципального задания на оказание муниципальных услуг (выполнение работ)",9,1,7950500,"611",50]
["Амбулаторная помощь",9,2,0,0,15308]
["Руководство и управление в сфере установленных функций органов государственной власти субъектов Российской Федерации  и органов местного самоуправления",9,2,20000,0,3068.7]
["Осуществление отдельных областных государственных полномочий в области охраны здоровья граждан",9,2,25200,0,3068.7]
["Выполнение функций казенными учреждениями",9,2,25200,"001",510.1]
["Субсидии бюджетным учреждениям на финансовое обеспечение муниципального задания на оказание муниципальных услуг (выполнение работ)",9,2,25200,"611",2558.6]
["Реализация региональных программ модернизации здравоохранения субъектов Российской Федерации и программ модернизации федеральных государственных учреждений",9,2,960000,0,3141.5]
["Реализация программ модернизации здравоохранения субъектов Российской Федерации в части укрепления материально-технической базы медицинских учреждений",9,2,960100,0,3141.5]
["Реализация программ модернизации здравоохранения субъектов Российской Федерации в части укрепления материально-технической базы медицинских учреждений за счет средств бюджета территориального фонда обязательного медицинского страхования граждан Иркутской области",9,2,960101,0,3141.5]
["Выполнение функций казенными учреждениями",9,2,960101,"001",0]
["Субсидии бюджетным учреждениям на иные цели",9,2,960101,"612",3141.5]
["Поликлиники, амбулатории, диагностические центры",9,2,4710000,0,2378.6999999999998]
["Субсидии бюджетным учреждениям на финансовое обеспечение муниципального задания на оказание муниципальных услуг (выполнение работ)",9,2,4710000,"611",1342.3]
["Субсидии бюджетным учреждениям на иные цели",9,2,4710000,"612",809.4]
["Обеспечение деятельности подведомственных учреждений",9,2,4719900,0,227]
["Выполнение функций казенными учреждениями",9,2,4719900,"001",227]
["Фельдшерско-акушерские пункты",9,2,4780000,0,2506]
["Субсидии бюджетным учреждениям на финансовое обеспечение муниципального задания на оказание муниципальных услуг (выполнение работ)",9,2,4780000,"611",1906.9]
["Субсидии бюджетным учреждениям на иные цели",9,2,4780000,"612",26.1]
["Обеспечение деятельности подведомственных учреждений",9,2,4789900,0,573]
["Выполнение функций казенными учреждениями",9,2,4789900,"001",573]
["Иные безвозмездные и безвозвратные перечисления",9,2,5200000,0,3215]
["Денежные выплаты медицинскому персоналу фельдшерско-акушерских пунктов, врачам, фельдшерам и медицинским сестрам скорой медицинской помощи",9,2,5201800,0,3215]
["Выполнение функций казенными учреждениями",9,2,5201800,"001",0]
["Субсидии бюджетным учреждениям на финансовое обеспечение муниципального задания на оказание муниципальных услуг (выполнение работ)",9,2,5201800,"611",3215]
["Целевые программы муниципальных образований",9,2,7950000,0,998.1]
["Мероприятия в области здравоохранения",9,2,7950000,"079",50]
["Мероприятия по повышению энергетической эффективности",9,2,7950000,"451",0]
["Субсидии бюджетным учреждениям на финансовое обеспечение муниципального задания на оказание муниципальных услуг (выполнение работ)",9,2,7950000,"611",0]
["Долгосрочная целевая программа Черемховского районного муниципального образования \"Повышение эффективности бюджетных расходов Черемховского районного муниципального образования на 2012-2013 годы\"",9,2,7950200,0,948.1]
["Выполнение функций казенными учреждениями",9,2,7950200,"001",0]
["Субсидии бюджетным учреждениям на финансовое обеспечение муниципального задания на оказание муниципальных услуг (выполнение работ)",9,2,7950200,"611",948.1]
["Медицинская помощь в дневных стационарах всех типов",9,3,0,0,663.4]
["Больницы, клиники, госпитали, медико-санитарные части",9,3,4700000,0,186.2]
["Субсидии бюджетным учреждениям на финансовое обеспечение муниципального задания на оказание муниципальных услуг (выполнение работ)",9,3,4700000,"611",185.6]
["Обеспечение деятельности подведомственных учреждений",9,3,4709900,0,0.6]
["Выполнение функций казенными учреждениями",9,3,4709900,"001",0.6]
["Целевые программы муниципальных образований",9,3,7950000,0,477.2]
["Долгосрочная целевая программа Черемховского районного муниципального образования \"Повышение эффективности бюджетных расходов Черемховского районного муниципального образования на 2012-2013 годы\"",9,3,7950200,0,477.2]
["Субсидии бюджетным учреждениям на финансовое обеспечение муниципального задания на оказание муниципальных услуг (выполнение работ)",9,3,7950200,"611",477.2]
["Скорая медицинская помощь",9,4,0,0,13764.2]
["Руководство и управление в сфере установленных функций органов государственной власти субъектов Российской Федерации  и органов местного самоуправления",9,4,20000,0,9986.7000000000007]
["Осуществление отдельных областных государственных полномочий в области охраны здоровья граждан",9,4,25200,0,9986.7000000000007]
["Выполнение функций казенными учреждениями",9,4,25200,"001",1628.2]
["Субсидии бюджетным учреждениям на финансовое обеспечение муниципального задания на оказание муниципальных услуг (выполнение работ)",9,4,25200,"611",8358.5]
["Больницы, клиники, госпитали, медико-санитарные части",9,4,4700000,0,1741.5]
["Субсидии бюджетным учреждениям на финансовое обеспечение муниципального задания на оказание муниципальных услуг (выполнение работ)",9,4,4700000,"611",1409.5]
["Обеспечение деятельности подведомственных учреждений",9,4,4709900,0,332]
["Выполнение функций казенными учреждениями",9,4,4709900,"001",332]
["Иные безвозмездные и безвозвратные перечисления",9,4,5200000,0,1718]
["Денежные выплаты медицинскому персоналу фельдшерско-акушерских пунктов, врачам, фельдшерам и медицинским сестрам скорой медицинской помощи",9,4,5201800,0,1718]
["Выполнение функций казенными учреждениями",9,4,5201800,"001",0]
["Субсидии бюджетным учреждениям на финансовое обеспечение муниципального задания на оказание муниципальных услуг (выполнение работ)",9,4,5201800,"611",1718]
["Целевые программы муниципальных образований",9,4,7950000,0,318]
["Долгосрочная целевая программа Черемховского районного муниципального образования \"Повышение эффективности бюджетных расходов Черемховского районного муниципального образования на 2012-2013 годы\"",9,4,7950200,0,318]
["Субсидии бюджетным учреждениям на финансовое обеспечение муниципального задания на оказание муниципальных услуг (выполнение работ)",9,4,7950200,"611",318]
["Другие вопросы в области здравоохранения",9,9,0,0,608.5]
["Руководство и управление в сфере установленных функций органов государственной власти субъектов Российской Федерации  и органов местного самоуправления",9,9,20000,0,8.5]
["Центральный аппарат",9,9,20400,0,8.5]
["Выполнение функций органами местного самоуправления",9,9,20400,"500",8.5]
["Погашение кредиторской задолженности учреждений, находящихся в ведении органов местного самоуправления муниципальных образований Иркутской области по налоговым платежам, включая пени и штрафы, начисленные на задолженность по налоговым платежам и (или) по пеням и штрафам, начисленным на задолженность по страховым взносам на обязательное пенсионное страхование за период 2002-2009 годов, и (или) реструктурированной задолженности по страховым взносам в государственные внебюджетные фонды, образовавшейся до 1 января 2001 года, и (или) реструктурированной задолженности по единому социальному налогу, зачисляемому в федеральный бюджет, бюджеты государственных внебюджетных фондов, образовавшейся с 1 января 2002 года до 31 декабря 2009 года",9,9,5940000,0,0]
["Выполнение функций органами местного самоуправления",9,9,5940000,"500",0]
["Целевые программы муниципальных образований",9,9,7950000,0,600]
["Долгосрочная целевая программа \"Привлечение врачебных кадров в здравоохранение района\" на 2012-2014 годы",9,9,7950900,0,600]
["Субсидии бюджетным учреждениям на финансовое обеспечение муниципального задания на оказание муниципальных услуг (выполнение работ)",9,9,7950900,"611",0]
["Субсидии бюджетным учреждениям на иные цели",9,9,7950900,"612",600]
["Социальная политика",10,0,0,0,20941.599999999999]
["Пенсионное обеспечение",10,1,0,0,2880.9]
["Доплаты к пенсиям, дополнительное пенсионное обеспечение ",10,1,4910000,0,2880.9]
["Доплаты к пенсиям государственных служащих субъектов Российской Федерации и муниципальных служащих ",10,1,4910100,0,2880.9]
["Социальные выплаты",10,1,4910100,"005",2880.9]
["Социальное обеспечение населения",10,3,0,0,11858.5]
["Руководство и управление в сфере установленных функций органов государственной власти субъектов Российской Федерации  и органов местного самоуправления",10,3,20000,0,10544.4]
["Осуществление отдельных областных государственных полномочий по предоставлению мер социальной поддержки многодетным и малоимущим семьям",10,3,24600,0,4145.3]
["Социальные выплаты",10,3,24600,"005",4145.3]
["Осуществление областных государственных полномочий по предоставлению гражданам субсидий на оплату жилых помещений и коммунальных услуг",10,3,24700,0,6399.1]
["Предоставление гражданам субсидий на оплату жилых помещений и коммунальных услуг",10,3,24702,0,6399.1]
["Социальные выплаты",10,3,24702,"005",6399.1]
["Федеральные целевые программы",10,3,1000000,0,166.8]
["Федеральная целевая программа \"Жилище\" на 2011 - 2015 годы",10,3,1008800,0,166.8]
["Подпрограмма \"Обеспечение жильем молодых семей\"",10,3,1008820,0,166.8]
["Социальные выплаты",10,3,1008820,"005",166.8]
["Реализация государственных функций в области социальной политики",10,3,5140000,0,832.1]
["Мероприятия в области социальной политики",10,3,5140100,0,832.1]
["Социальные выплаты",10,3,5140100,"005",832.1]
["Региональные целевые программы",10,3,5220000,0,190.7]
["Областная государственная социальная программа \"Молодым семьям - доступное жилье\" на 2005-2019 годы",10,3,5222200,0,190.7]
["Социальные выплаты",10,3,5222200,"005",190.7]
["Целевые программы муниципальных образований",10,3,7950000,0,124.5]
["Выполнение функций органами местного самоуправления",10,3,7950000,"500",124.5]
["Охрана семьи и детства",10,4,0,0,5082.7]
["Руководство и управление в сфере установленных функций органов государственной власти субъектов Российской Федерации  и органов местного самоуправления",10,4,20000,0,3012.4]
["Осуществление областных государственных полномочий по обеспечению детей-сирот и детей, оставшихся без попечения родителей, лиц из числа детей-сирот и детей, оставшихся без попечения родителей, жилыми помещениями по договорам социального найма в Иркутской области",10,4,24800,0,3012.4]
["Содержание и обеспечение деятельности муниципальных служащих, осуществляющих областные государственные полномочия по обеспечению детей-сирот и детей, оставшихся без попечения родителей, лиц из числа детей-сирот и детей, оставшихся без попечения родителей, жилыми помещениями по договорам социального найма в Иркутской области",10,4,24801,0,22.7]
["Выполнение функций органами местного самоуправления",10,4,24801,"500",22.7]
["Обеспечение детей-сирот и детей, оставшихся без попечения родителей, лиц из числа детей-сирот и детей, оставшихся без попечения родителей, жилыми помещениями по договорам социального найма в Иркутской области",10,4,24802,0,2989.7]
["Бюджетные инвестиции",10,4,24802,"003",2989.7]
["Социальная помощь",10,4,5050000,0,2070.3000000000002]
["Федеральный закон от 21 декабря 1996 года N 159-ФЗ \"О дополнительных гарантиях по социальной поддержке детей-сирот и детей, оставшихся без попечения родителей\"",10,4,5052100,0,2070.3000000000002]
["Обеспечение жилыми помещениями детей-сирот, детей, оставшихся без попечения родителей, а также детей, находящихся под опекой (попечительством), не имеющих закрепленного жилого помещения",10,4,5052102,0,2070.3000000000002]
["Бюджетные инвестиции",10,4,5052102,"003",2070.3000000000002]
["Другие вопросы в области социальной политики",10,6,0,0,1119.5]
["Руководство и управление в сфере установленных функций органов государственной власти субъектов Российской Федерации  и органов местного самоуправления",10,6,20000,0,1019.5]
["Осуществление областных государственных полномочий по определению персонального состава и обеспечению деятельности районных (городских), районных в городах комиссий по делам несовершеннолетних и защите их прав",10,6,24100,0,1019.5]
["Выполнение функций органами местного самоуправления",10,6,24100,"500",1019.5]
["Целевые программы муниципальных образований",10,6,7950000,0,100]
["Выполнение функций органами местного самоуправления",10,6,7950000,"500",100]
["ФИЗИЧЕСКАЯ КУЛЬТУРА И СПОРТ",11,0,0,0,785]
["Физическая культура",11,1,0,0,785]
["Физкультурно-оздоровительная работа и спортивные мероприятия",11,1,5120000,0,485.9]
["Мероприятия в области спорта, физической культуры и туризма",11,1,5129700,0,485.9]
["Выполнение функций органами местного самоуправления",11,1,5129700,"500",485.9]
["Целевые программы муниципальных образований",11,1,7950000,0,299.10000000000002]
["Выполнение функций органами местного самоуправления",11,1,7950000,"500",299.10000000000002]
["СРЕДСТВА МАССОВОЙ ИНФОРМАЦИИ",12,0,0,0,2605]
["Периодическая печать и издательства",12,2,0,0,2605]
["Периодические издания, учрежденные органами законодательной и исполнительной власти",12,2,4570000,0,2605]
["Государственная поддержка в сфере культуры, кинематографии и средств массовой информации",12,2,4578500,0,2605]
["Субсидии юридическим лицам",12,2,4578500,"006",2605]
["ОБСЛУЖИВАНИЕ ГОСУДАРСТВЕННОГО И МУНИЦИПАЛЬНОГО ДОЛГА",13,0,0,0,0]
["Обслуживание внутреннего государственного и муниципального долга",13,1,0,0,0]
["Процентные платежи по долговым обязательствам",13,1,650000,0,0]
["Процентные платежи по муниципальному долгу",13,1,650300,0,0]
["Прочие расходы",13,1,650300,"013",0]
["МЕЖБЮДЖЕТНЫЕ ТРАНСФЕРТЫ ОБЩЕГО ХАРАКТЕРА БЮДЖЕТАМ СУБЪЕКТОВ РОССИЙСКОЙ ФЕДЕРАЦИИ И МУНИЦИПАЛЬНЫХ ОБРАЗОВАНИЙ ",14,0,0,0,10235]
["Дотации на выравнивание бюджетной обеспеченности субъектов Российской Федерации и муниципальных образований",14,1,0,0,3500]
["Выравнивание бюджетной обеспечености",14,1,5160000,0,3500]
["Выравнивание бюджетной обеспеченности",14,1,5160100,0,3500]
["Выравнивание бюджетной обеспеченности поселений из районного фонда финансовой поддержки",14,1,5160130,0,3500]
["Фонд финансовой поддержки",14,1,5160130,"008",3500]
["Прочие межбюджетные трансферты общего характера бюджетам субъектов Российской Федерации и муниципальных образований ",14,3,0,0,6735]
["Межбюджетные трансферты",14,3,5210000,0,92]
["Межбюджетные трансферты бюджетам муниципальных районов из бюджетов поселений и межбюджетные трансферты бюджетам поселений из бюджетов муниципальных районов на осуществление части полномочий по решению вопросов местного значения в соответствии с заключенными соглашениями",14,3,5210600,0,92]
["Иные межбюджетные трансферты",14,3,5210600,"017",92]
["Целевые программы муниципальных образований",14,3,7950000,0,6643]
["Долгосрочная целевая программа Черемховского районного муниципального образования \"Повышение эффективности бюджетных расходов Черемховского районного муниципального образования на 2012-2013 годы\"",14,3,7950200,0,6643]
["Иные межбюджетные трансферты",14,3,7950200,"017",6643]
["ИТОГО",{"$nulls":4},674916]
[]
[]
["Начальник финансового управления",null,null,null,"Ю.Н. Гайдук"]

{"sheet":"прил6","index":3,"n_rows":53,"n_cols":4,"rows_kept":53,"cut":false,"hidden":false,"merged":[[6,0,6,3],[49,0,49,2]]}
[]
[]
[]
[]
[]
[]
["Распределение бюджетных ассигнований на 2012 год по  разделам и подразделам классификации расходов бюджетов Черемховского районного муниципального образования"]
[]
["Наименование статьи","раздел","подраздел","Сумма, тыс. руб."]
[1,2,3,4]
["ОБЩЕГОСУДАРСТВЕННЫЕ ВОПРОСЫ","01",null,{"$f":"SUM(D12:D17)","v":77828.100000000006}]
["Функционирование высшего должностного лица субъекта Российской Федерации и органа местного самоуправления","01","02",{"$f":"прил5!F13","v":2034.5}]
["Функционирование законодательных (представительных) органов государственной власти и местного самоуправления","01","03",{"$f":"прил5!F17","v":1601.4}]
["Функционирование Правительства Российской Федерации, высших органов исполнительной власти субъектов Российской Федерации, местных администраций ","01","04",{"$f":"прил5!F27","v":28868.2}]
["Судебная система","01","05",{"$f":"прил5!F38","v":7.5}]
["Обеспечение деятельности финансовых, налоговых и таможенных органов и органов надзора","01","06",{"$f":"прил5!F42","v":9208.2000000000007}]
["Другие общегосударственные вопросы","01","13",{"$f":"прил5!F57","v":36108.300000000003}]
["НАЦИОНАЛЬНАЯ ЭКОНОМИКА","04",null,{"$f":"D19","v":24637.3}]
["Другие вопросы в области национальной экономики","04","12",{"$f":"прил5!F94","v":24637.3}]
["ЖИЛИЩНО-КОММУНАЛЬНОЕ ХОЗЯЙСТВО","05",null,{"$f":"D23+D21+D22","v":11372.099999999999}]
["Жилищное хозяйство","05","01",{"$f":"прил5!F113","v":644.70000000000005}]
["Коммунальное хозяйство","05","02",{"$f":"прил5!F120","v":4295.5}]
["Другие вопросы в области жилищно-коммунального хозяйства","05","05",{"$f":"прил5!F132","v":6431.9}]
["ОБРАЗОВАНИЕ","07",null,{"$f":"D25+D26+D27+D28","v":441656}]
["Дошкольное образование","07","01",{"$f":"прил5!F148","v":97602.6}]
["Общее образование","07","02",{"$f":"прил5!F169","v":331383.40000000002}]
["Молодежная политика и оздоровление детей","07","07",{"$f":"прил5!F202","v":2615}]
["Другие вопросы в области образования","07","09",{"$f":"прил5!F218","v":10055}]
["КУЛЬТУРА И КИНЕМАТОГРАФИЯ ","08",null,{"$f":"D30+D31","v":20585.400000000001}]
["Культура ","08","01",{"$f":"прил5!F232","v":19552.2}]
["Другие вопросы в области культуры, кинематографии","08","04",{"$f":"прил5!F261","v":1033.2}]
["ЗДРАВООХРАНЕНИЕ","09",null,{"$f":"SUM(D33:D37)","v":64270.5}]
["Стационарная помощь","09","01",{"$f":"прил5!F266","v":33926.400000000001}]
["Амбулаторная помощь","09","02",{"$f":"прил5!F301","v":15308}]
["Медицинская помощь в дневных стационарах всех типов","09","03",{"$f":"прил5!F332","v":663.4}]
["Скорая медицинская помощь","09","04",{"$f":"прил5!F340","v":13764.2}]
["Другие вопросы в области здравоохранения","09","09",{"$f":"прил5!F356","v":608.5}]
["СОЦИАЛЬНАЯ ПОЛИТИКА",10,null,{"$f":"D39+D40+D41+D42","v":20941.599999999999}]
["Пенсионное обеспечение","10","01",{"$f":"прил5!F367","v":2880.9}]
["Социальное обеспечение населения","10","03",{"$f":"прил5!F371","v":11858.5}]
["Охрана семьи и детства","10","04",{"$f":"прил5!F390","v":5082.7}]
["Другие вопросы в области социальной политики","10","06",{"$f":"прил5!F401","v":1119.5}]
["ФИЗИЧЕСКАЯ КУЛЬТУРА И СПОРТ","11",null,{"$f":"D44","v":785}]
["Физическая культура","11","01",{"$f":"прил5!F408","v":785}]
["СРЕДСТВА МАССОВОЙ ИНФОРМАЦИИ","12",null,{"$f":"D46","v":2605}]
["Периодическая печать и издательства","12","02",{"$f":"прил5!F415","v":2605}]
["МЕЖБЮДЖЕТНЫЕ ТРАНСФЕРТЫ ОБЩЕГО ХАРАКТЕРА БЮДЖЕТАМ СУБЪЕКТОВ РОССИЙСКОЙ ФЕДЕРАЦИИ И МУНИЦИПАЛЬНЫХ ОБРАЗОВАНИЙ ","14",null,{"$f":"D48+D49","v":10235}]
["Дотации на выравнивание бюджетной обеспеченности субъектов Российской Федерации и муниципальных образований","14","01",{"$f":"прил5!F425","v":3500}]
["Прочие межбюджетные трансферты общего характера","14","03",{"$f":"прил5!F430","v":6735}]
["ИТОГО",null,null,{"$f":"D11+D18+D20+D24+D29+D32+D38+D43+D45+D47","v":674916}]
[]
[]
["Начальник Финансового управления",null,null,"Ю.Н. Гайдук"]

{"sheet":"прил7","index":4,"n_rows":592,"n_cols":7,"rows_kept":592,"cut":false,"hidden":false,"merged":[[7,0,7,6],[9,0,10,0],[9,1,9,5],[9,6,10,6],[589,0,589,5]]}
{"$rows_empty":7}
["Распределение  бюджетных ассигнований  на  2012 год по разделам, подразделам, целевым статьям и видам расходов в структуре расходов бюджета Черемховского районного муниципального образования"]
[]
["Наименование показателя","Код",{"$nulls":4},"Сумма, тыс. руб."]
[null,"ГРБС","раздела","подраздела","целевой статьи","вида расходов"]
[1,2,3,4,5,6,7]
["МБУЗ Михайловская ЦРБ",903,0,0,0,0,7929.5]
["ЗДРАВООХРАНЕНИЕ",903,9,0,0,0,7929.5]
["Стационарная медицинская помощь",903,9,1,0,0,4608.7]
["Руководство и управление в сфере установленных функций органов государственной власти субъектов Российской Федерации  и органов местного самоуправления",903,9,1,20000,0,2773]
["Осуществление отдельных областных государственных полномочий в области охраны здоровья граждан",903,9,1,25200,0,2773]
["Выполнение функций казенными учреждениями",903,9,1,25200,"001",2773]
["Реализация региональных программ модернизации здравоохранения субъектов Российской Федерации и программ модернизации федеральных государственных учреждений",903,9,1,960000,0,0]
["Реализация программ модернизации здравоохранения субъектов Российской Федерации в части укрепления материально-технической базы медицинских учреждений",903,9,1,960100,0,0]
["Реализация программ модернизации здравоохранения субъектов Российской Федерации в части укрепления материально-технической базы медицинских учреждений за счет средств бюджета территориального фонда обязательного медицинского страхования граждан Иркутской области",903,9,1,960101,0,0]
["Выполнение функций казенными учреждениями",903,9,1,960101,"001",0]
["Больницы, клиники, госпитали, медико-санитарные части",903,9,1,4700000,0,1835.7]
["Обеспечение деятельности подведомственных учреждений",903,9,1,4709900,0,1835.7]
["Выполнение функций казенными учреждениями",903,9,1,4709900,"001",1835.7]
["Целевые программы муниципальных образований",903,9,1,7950000,0,0]
["Мероприятия по повышению энергетической эффективности",903,9,1,7950000,"451",0]
["Долгосрочная целевая программа Черемховского районного муниципального образования \"Повышение эффективности бюджетных расходов Черемховского районного муниципального образования на 2012-2013 годы\"",903,9,1,7950200,0,0]
["Выполнение функций казенными учреждениями",903,9,1,7950200,"001",0]
["Амбулаторная помощь",903,9,2,0,0,1360]
["Руководство и управление в сфере установленных функций органов государственной власти субъектов Российской Федерации  и органов местного самоуправления",903,9,2,20000,0,510]
["Осуществление отдельных областных государственных полномочий в области охраны здоровья граждан",903,9,2,25200,0,510]
["Выполнение функций казенными учреждениями",903,9,2,25200,"001",510]
["Реализация региональных программ модернизации здравоохранения субъектов Российской Федерации и программ модернизации федеральных государственных учреждений",903,9,2,960000,0,0]
["Реализация программ модернизации здравоохранения субъектов Российской Федерации в части укрепления материально-технической базы медицинских учреждений",903,9,2,960100,0,0]
["Реализация программ модернизации здравоохранения субъектов Российской Федерации в части укрепления материально-технической базы медицинских учреждений за счет средств бюджета территориального фонда обязательного медицинского страхования граждан Иркутской области",903,9,2,960101,0,0]
["Выполнение функций казенными учреждениями",903,9,2,960101,"001",0]
["Поликлиники, амбулатории, диагностические центры",903,9,2,4710000,0,227]
["Обеспечение деятельности подведомственных учреждений",903,9,2,4719900,0,227]
["Выполнение функций казенными учреждениями",903,9,2,4719900,"001",227]
["Фельдшерско-акушерские пункты",903,9,2,4780000,0,573]
["Обеспечение деятельности подведомственных учреждений",903,9,2,4789900,0,573]
["Выполнение функций казенными учреждениями",903,9,2,4789900,"001",573]
["Иные безвозмездные и безвозвратные перечисления",903,9,2,5200000,0,0]
["Денежные выплаты медицинскому персоналу фельдшерско-акушерских пунктов, врачам, фельдшерам и медицинским сестрам скорой медицинской помощи",903,9,2,5201800,0,0]
["Выполнение функций казенными учреждениями",903,9,2,5201800,"001",0]
["Целевые программы муниципальных образований",903,9,2,7950000,0,50]
["Мероприятия в области здравоохранения",903,9,2,7950000,"079",50]
["Мероприятия по повышению энергетической эффективности",903,9,2,7950000,"451",0]
["Долгосрочная целевая программа Черемховского районного муниципального образования \"Повышение эффективности бюджетных расходов Черемховского районного муниципального образования на 2012-2013 годы\"",903,9,2,7950200,0,0]
["Выполнение функций казенными учреждениями",903,9,2,7950200,"001",0]
["Медицинская помощь в дневных стационарах всех типов",903,9,3,0,0,0.6]
["Больницы, клиники, госпитали, медико-санитарные части",903,9,3,4700000,0,0.6]
["Обеспечение деятельности подведомственных учреждений",903,9,3,4709900,0,0.6]
["Выполнение функций казенными учреждениями",903,9,3,4709900,"001",0.6]
["Скорая медицинская помощь",903,9,4,0,0,1960.2]
["Руководство и управление в сфере установленных функций органов государственной власти субъектов Российской Федерации  и органов местного самоуправления",903,9,4,20000,0,1628.2]
["Осуществление отдельных областных государственных полномочий в области охраны здоровья граждан",903,9,4,25200,0,1628.2]
["Выполнение функций казенными учреждениями",903,9,4,25200,"001",1628.2]
["Больницы, клиники, госпитали, медико-санитарные части",903,9,4,4700000,0,332]
["Обеспечение деятельности подведомственных учреждений",903,9,4,4709900,0,332]
["Выполнение функций казенными учреждениями",903,9,4,4709900,"001",332]
["Иные безвозмездные и безвозвратные перечисления",903,9,4,5200000,0,0]
["Денежные выплаты медицинскому персоналу фельдшерско-акушерских пунктов, врачам, фельдшерам и медицинским сестрам скорой медицинской помощи",903,9,4,5201800,0,0]
["Выполнение функций казенными учреждениями",903,9,4,5201800,"001",0]
["Отдел по культуре и библиотечному обслуживанию АЧРМО",904,0,0,0,0,1033.2]
["КУЛЬТУРА И КИНЕМАТОГРАФИЯ",904,8,0,0,0,1033.2]
["Другие вопросы в области культуры, кинематографии",904,8,4,0,0,1033.2]
["Руководство и управление в сфере установленных функций органов государственной власти субъектов Российской Федерации  и органов местного самоуправления",904,8,4,20000,0,1033.2]
["Центральный аппарат",904,8,4,20400,0,1033.2]
["Выполнение функций органами местного самоуправления",904,8,4,20400,"500",1033.2]
["Отдел образования АЧРМО",907,0,0,0,0,438903.4]
["ОБРАЗОВАНИЕ",907,7,0,0,0,434758.1]
["Дошкольное образование",907,7,1,0,0,97602.6]
["Детские дошкольные учреждения",907,7,1,4200000,0,74226.7]
["Обеспечение деятельности подведомственных учреждений",907,7,1,4209900,0,74226.7]
["Выполнение функций казенными учреждениями",907,7,1,4209900,"001",74226.7]
["Региональные целевые программы",907,7,1,5220000,0,7979.3]
["Областная государственная целевая программа поддержки и развития учреждений дошкольного образования в Иркутской области на 2009-2014 годы",907,7,1,5223700,0,7857.3]
["Выполнение функций казенными учреждениями",907,7,1,5223700,"001",7857.3]
["Долгосрочная целевая программа «Энергосбережение и повышение энергетической эффективности на территории Иркутской области на 2011-2015 годы и на период до 2020 года»",907,7,1,5225400,0,122]
["Выполнение функций казенными учреждениями",907,7,1,5225400,"001",122]
["Выплата заработной платы с начислениями на нее педагогическим работникам муниципальных дошкольных образовательных учреждений и муниципальных учреждений дополнительного образования",907,7,1,5890000,0,5719]
["Выполнение функций казенными учреждениями",907,7,1,5890000,"001",5719]
["Погашение кредиторской задолженности учреждений, находящихся в ведении органов местного самоуправления муниципальных образований Иркутской области, по единому социальному налогу, зачисляемому в федеральный бюджет, Фонд социального страхования Российской Федерации, Федеральный фонд обязательного медицинского страхования и территориальные фонды обязательного медицинского страхования",907,7,1,5900000,0,591.29999999999995]
["Выполнение функций казенными учреждениями",907,7,1,5900000,"001",591.29999999999995]
["Погашение кредиторской задолженности учреждений, находящихся в ведении органов местного самоуправления муниципальных образований Иркутской области по налоговым платежам, включая пени и штрафы, начисленные на задолженность по налоговым платежам и (или) по пеням и штрафам, начисленным на задолженность по страховым взносам на обязательное пенсионное страхование за период 2002-2009 годов, и (или) реструктурированной задолженности по страховым взносам в государственные внебюджетные фонды, образовавшейся до 1 января 2001 года, и (или) реструктурированной задолженности по единому социальному налогу, зачисляемому в федеральный бюджет, бюджеты государственных внебюджетных фондов, образовавшейся с 1 января 2002 года до 31 декабря 2009 года",907,7,1,5940000,0,0]
["Выполнение функций казенными учреждениями",907,7,1,5940000,"001",0]
["Целевые программы муниципальных образований",907,7,1,7950000,0,9086.2999999999993]
["Мероприятия в сфере образования",907,7,1,7950000,"022",987]
["Мероприятия по обеспечению пожарной безопасности",907,7,1,7950000,"450",1000]
["Мероприятия по повышению энергетической эффективности",907,7,1,7950000,"451",0]
["Долгосрочная целевая программа Черемховского районного муниципального образования \"Повышение эффективности бюджетных расходов Черемховского районного муниципального образования на 2012-2013 годы\"",907,7,1,7950200,0,7099.3]
["Выполнение функций казенными учреждениями",907,7,1,7950200,"001",7099.3]
["Общее образование",907,7,2,0,0,324691.5]
["Руководство и управление в сфере установленных функций органов государственной власти субъектов Российской Федерации  и органов местного самоуправления",907,7,2,20000,0,236986.7]
["Обеспечение государственных гарантий прав граждан на получение общедоступного и бесплатного дошкольного, начального общего, основного общего, среднего (полного) общего образования, а также дополнительного образования в общеобразовательных учреждениях",907,7,2,25000,0,236986.7]
["Выполнение функций казенными учреждениями",907,7,2,25000,"001",236986.7]
["Школы - детские сады, школы начальные, неполные средние и средние",907,7,2,4210000,0,47870.1]
["Обеспечение деятельности подведомственных учреждений",907,7,2,4219900,0,47870.1]
["Выполнение функций казенными учреждениями",907,7,2,4219900,"001",47870.1]
["Учреждения по внешкольной работе с детьми",907,7,2,4230000,0,16199.8]
["Обеспечение деятельности подведомственных учреждений",907,7,2,4239900,0,16199.8]
["Выполнение функций казенными учреждениями",907,7,2,4239900,"001",16199.8]
["Иные безвозмездные и безвозвратные перечисления",907,7,2,5200000,0,5162.3]
["Ежемесячное денежное вознаграждение за классное руководство",907,7,2,5200900,0,5162.3]
["Выполнение функций казенными учреждениями",907,7,2,5200900,"001",5162.3]
["Региональные целевые программы",907,7,2,5220000,0,1414.2]
["Долгосрочная целевая программа \"Социальное развитие села Иркутской области на 2011-2014 годы\"",907,7,2,5221800,0,789]
["Бюджетные инвестиции",907,7,2,5221800,"003",789]
["Долгосрочная целевая программа «Модернизация объектов коммунальной инфраструктуры Иркутской области на 2011-2013 годы»",907,7,2,5222000,0,300]
["Подпрограмма «Подготовка объектов коммунальной инфраструктуры Иркутской области к отопительному сезону в 2011-2013 годах»",907,7,2,5222001,0,300]
["Выполнение функций казенными учреждениями",907,7,2,5222001,"001",300]
["Долгосрочная целевая программа «Энергосбережение и повышение энергетической эффективности на территории Иркутской области на 2011-2015 годы и на период до 2020 года»",907,7,2,5225400,0,325.2]
["Выполнение функций казенными учреждениями",907,7,2,5225400,"001",325.2]
["Выплата заработной платы с начислениями на нее педагогическим работникам муниципальных дошкольных образовательных учреждений и муниципальных учреждений дополнительного образования",907,7,2,5890000,0,2276]
["Выполнение функций казенными учреждениями",907,7,2,5890000,"001",2276]
["Погашение кредиторской задолженности учреждений, находящихся в ведении органов местного самоуправления муниципальных образований Иркутской области, по единому социальному налогу, зачисляемому в федеральный бюджет, Фонд социального страхования Российской Федерации, Федеральный фонд обязательного медицинского страхования и территориальные фонды обязательного медицинского страхования",907,7,2,5900000,0,877]
["Выполнение функций казенными учреждениями",907,7,2,5900000,"001",877]
["Погашение кредиторской задолженности учреждений, находящихся в ведении органов местного самоуправления муниципальных образований Иркутской области по налоговым платежам, включая пени и штрафы, начисленные на задолженность по налоговым платежам и (или) по пеням и штрафам, начисленным на задолженность по страховым взносам на обязательное пенсионное страхование за период 2002-2009 годов, и (или) реструктурированной задолженности по страховым взносам в государственные внебюджетные фонды, образовавшейся до 1 января 2001 года, и (или) реструктурированной задолженности по единому социальному налогу, зачисляемому в федеральный бюджет, бюджеты государственных внебюджетных фондов, образовавшейся с 1 января 2002 года до 31 декабря 2009 года",907,7,2,5940000,0,0]
["Выполнение функций казенными учреждениями",907,7,2,5940000,"001",0]
["Целевые программы муниципальных образований",907,7,2,7950000,0,13905.4]
["Мероприятия в сфере образования",907,7,2,7950000,"022",1640]
["Мероприятия по обеспечению пожарной безопасности",907,7,2,7950000,"450",700]
["Мероприятия по повышению энергетической эффективности",907,7,2,7950000,"451",600]
["Долгосрочная целевая программа Черемховского районного муниципального образования \"Повышение эффективности бюджетных расходов Черемховского районного муниципального образования на 2012-2013 годы\"",907,7,2,7950200,0,10965.4]
["Выполнение функций казенными учреждениями",907,7,2,7950200,"001",10965.4]
["Молодежная политика и оздоровление детей",907,7,7,0,0,2409]
["Мероприятия по проведению оздоровительной кампании детей",907,7,7,4320000,0,24.1]
["Мероприятия по организации оздоровительной кампании детей",907,7,7,4320100,0,0]
["Мероприятия по организации оздоровительной кампании детей за счет средств местного бюджета",907,7,7,4320102,0,0]
["Выполнение функций казенными учреждениями",907,7,7,4320102,"001",0]
["Оплата стоимости набора продуктов питания для детей в организованных органами местного самоуправления оздоровительных лагерях с дневным пребыванием детей за счет средств областного бюджета",907,7,7,4320300,0,24.1]
["Оплата стоимости набора продуктов питания для детей в организованных органами местного самоуправления оздоровительных лагерях с дневным пребыванием детей за счет средств местного бюджета ",907,7,7,4320302,0,24.1]
["Выполнение функций казенными учреждениями",907,7,7,4320302,"001",24.1]
["Региональные целевые программы",907,7,7,5220000,0,2384.9]
["Долгосрочная целевая программа Иркутской области \"Организация и обеспечение отдыха и оздоровления детей в Иркутской области на 2012-2014гг.\"",907,7,7,5226200,0,2384.9]
["Выполнение функций казенными учреждениями",907,7,7,5226200,"001",2384.9]
["Другие вопросы в области образования",907,7,9,0,0,10055]
["Руководство и управление в сфере установленных функций органов государственной власти субъектов Российской Федерации  и органов местного самоуправления",907,7,9,20000,0,3723.5]
["Центральный аппарат",907,7,9,20400,0,3723.5]
["Выполнение функций органами местного самоуправления",907,7,9,20400,"500",3723.5]
["Учебно-методические кабинеты, централизованные бухгалтерии, группы хозяйственного обслуживания, учебные фильмотеки, межшкольные учебно-производственные комбинаты, логопедические пункты",907,7,9,4520000,0,6315.7]
["Обеспечение деятельности подведомственных учреждений",907,7,9,4529900,0,6315.7]
["Субсидии некоммерческим организациям",907,7,9,4529900,"019",193.6]
["Субсидии бюджетным учреждениям на финансовое обеспечение муниципального задания на оказание муниципальных услуг (выполнение работ)",907,7,9,4529900,"611",6011.8]
["Субсидии бюджетным учреждениям на иные цели",907,7,9,4529900,"612",110.3]
["Погашение кредиторской задолженности учреждений, находящихся в ведении органов местного самоуправления муниципальных образований Иркутской области, по единому социальному налогу, зачисляемому в федеральный бюджет, Фонд социального страхования Российской Федерации, Федеральный фонд обязательного медицинского страхования и территориальные фонды обязательного медицинского страхования",907,7,9,5900000,0,15.8]
["Выполнение функций органами местного самоуправления",907,7,9,5900000,"500",15.8]
["Погашение кредиторской задолженности учреждений, находящихся в ведении органов местного самоуправления муниципальных образований Иркутской области по налоговым платежам, включая пени и штрафы, начисленные на задолженность по налоговым платежам и (или) по пеням и штрафам, начисленным на задолженность по страховым взносам на обязательное пенсионное страхование за период 2002-2009 годов, и (или) реструктурированной задолженности по страховым взносам в государственные внебюджетные фонды, образовавшейся до 1 января 2001 года, и (или) реструктурированной задолженности по единому социальному налогу, зачисляемому в федеральный бюджет, бюджеты государственных внебюджетных фондов, образовавшейся с 1 января 2002 года до 31 декабря 2009 года",907,7,9,5940000,0,0]
["Выполнение функций органами местного самоуправления",907,7,9,5940000,"500",0]
["Социальная политика",907,10,0,0,0,4145.3]
["Социальное обеспечение населения",907,10,3,0,0,4145.3]
["Руководство и управление в сфере установленных функций органов государственной власти субъектов Российской Федерации  и органов местного самоуправления",907,10,3,20000,0,4145.3]
["Осуществление отдельных областных государственных полномочий по предоставлению мер социальной поддержки многодетным и малоимущим семьям",907,10,3,24600,0,4145.3]
["Социальные выплаты",907,10,3,24600,"005",4145.3]
["Финансовое управление администрации ЧРМО",910,0,0,0,0,33557.199999999997]
["ОБЩЕГОСУДАРСТВЕННЫЕ ВОПРОСЫ",910,1,0,0,0,23298.1]
["Обеспечение деятельности финансовых, налоговых и таможенных органов и органов финансового (финансово-бюджетного) надзора",910,1,6,0,0,7895.3]
["Руководство и управление в сфере установленных функций органов государственной власти субъектов Российской Федерации  и органов местного самоуправления",910,1,6,20000,0,7845.3]
["Центральный аппарат",910,1,6,20400,0,7845.3]
["Выполнение функций органами местного самоуправления",910,1,6,20400,"500",7845.3]
["Погашение кредиторской задолженности учреждений, находящихся в ведении органов местного самоуправления муниципальных образований Иркутской области по налоговым платежам, включая пени и штрафы, начисленные на задолженность по налоговым платежам и (или) по пеням и штрафам, начисленным на задолженность по страховым взносам на обязательное пенсионное страхование за период 2002-2009 годов, и (или) реструктурированной задолженности по страховым взносам в государственные внебюджетные фонды, образовавшейся до 1 января 2001 года, и (или) реструктурированной задолженности по единому социальному налогу, зачисляемому в федеральный бюджет, бюджеты государственных внебюджетных фондов, образовавшейся с 1 января 2002 года до 31 декабря 2009 года",910,1,6,5940000,0,0]
["Выполнение функций органами местного самоуправления",910,1,6,5940000,"500",0]
["Целевые программы муниципальных образований",910,1,6,7950000,0,50]
["Долгосрочная целевая программа Черемховского районного муниципального образования \"Повышение эффективности бюджетных расходов Черемховского районного муниципального образования на 2012-2013 годы\"",910,1,6,7950200,0,50]
["Выполнение функций органами местного самоуправления",910,1,6,7950200,"500",50]
["Другие общегосударственные вопросы",910,1,13,0,0,15402.8]
["Руководство и управление в сфере установленных функций органов государственной власти субъектов Российской Федерации  и органов местного самоуправления",910,1,13,20000,0,13090.3]
["Обеспечение деятельности подведомственных учреждений",910,1,13,29900,0,13090.3]
["Выполнение функций казенными учреждениями",910,1,13,29900,"001",13090.3]
["Реализация государственных функций, связанных с общегосударственным управлением",910,1,13,920000,0,44.9]
["Выполнение других обязательств государства",910,1,13,920300,0,44.9]
["Выполнение функций органами местного самоуправления",910,1,13,920300,"500",44.9]
["Погашение кредиторской задолженности учреждений, находящихся в ведении органов местного самоуправления муниципальных образований Иркутской области, по единому социальному налогу, зачисляемому в федеральный бюджет, Фонд социального страхования Российской Федерации, Федеральный фонд обязательного медицинского страхования и территориальные фонды обязательного медицинского страхования",910,1,13,5900000,0,32.799999999999997]
["Выполнение функций казенными учреждениями",910,1,13,5900000,"001",32.799999999999997]
["Погашение кредиторской задолженности учреждений, находящихся в ведении органов местного самоуправления муниципальных образований Иркутской области по налоговым платежам, включая пени и штрафы, начисленные на задолженность по налоговым платежам и (или) по пеням и штрафам, начисленным на задолженность по страховым взносам на обязательное пенсионное страхование за период 2002-2009 годов, и (или) реструктурированной задолженности по страховым взносам в государственные внебюджетные фонды, образовавшейся до 1 января 2001 года, и (или) реструктурированной задолженности по единому социальному налогу, зачисляемому в федеральный бюджет, бюджеты государственных внебюджетных фондов, образовавшейся с 1 января 2002 года до 31 декабря 2009 года",910,1,13,5940000,0,0]
["Выполнение функций казенными учреждениями",910,1,13,5940000,"001",0]
["Целевые программы муниципальных образований",910,1,13,7950000,0,2234.8000000000002]
["Долгосрочная целевая программа Черемховского районного муниципального образования \"Повышение эффективности бюджетных расходов Черемховского районного муниципального образования на 2012-2013 годы\"",910,1,13,7950200,0,2234.8000000000002]
["Выполнение функций казенными учреждениями",910,1,13,7950200,"001",2234.8000000000002]
["ЖИЛИЩНО-КОММУНАЛЬНОЕ ХОЗЯЙСТВО",910,5,0,0,0,24.1]
["Коммунальное хозяйство",910,5,2,0,0,24.1]
["Региональные целевые программы",910,5,2,5220000,0,24.1]
["Долгосрочная целевая программа «Энергосбережение и повышение энергетической эффективности на территории Иркутской области на 2011-2015 годы и на период до 2020 года»",910,5,2,5225400,0,24.1]
["Иные межбюджетные трансферты",910,5,2,5225400,"017",24.1]
["КУЛЬТУРА И КИНЕМАТОГРАФИЯ",910,8,0,0,0,0]
["Культура",910,8,1,0,0,0]
["Региональные целевые программы",910,8,1,5220000,0,0]
["Долгосрочная целевая программа \"Социальное развитие села Иркутской области на 2011-2014 годы\"",910,8,1,5221800,0,0]
["Иные межбюджетные трансферты",910,8,1,5221800,"017",0]
["ОБСЛУЖИВАНИЕ ГОСУДАРСТВЕННОГО И МУНИЦИПАЛЬНОГО ДОЛГА",910,13,0,0,0,0]
["Обслуживание внутреннего государственного и муниципального долга",910,13,1,0,0,0]
["Процентные платежи по долговым обязательствам",910,13,1,650000,0,0]
["Процентные платежи по муниципальному долгу",910,13,1,650300,0,0]
["Прочие расходы",910,13,1,650300,"013",0]
["МЕЖБЮДЖЕТНЫЕ ТРАНСФЕРТЫ ОБЩЕГО ХАРАКТЕРА БЮДЖЕТАМ СУБЪЕКТОВ РОССИЙСКОЙ ФЕДЕРАЦИИ И МУНИЦИПАЛЬНЫХ ОБРАЗОВАНИЙ ",910,14,0,0,0,10235]
["Дотации на выравнивание бюджетной обеспеченности субъектов Российской Федерации и муниципальных образований",910,14,1,0,0,3500]
["Выравнивание бюджетной обеспечености",910,14,1,5160000,0,3500]
["Выравнивание бюджетной обеспеченности",910,14,1,5160100,0,3500]
["Выравнивание бюджетной обеспеченности поселений из районного фонда финансовой поддержки",910,14,1,5160130,0,3500]
["Фонд финансовой поддержки",910,14,1,5160130,"008",3500]
["Прочие межбюджетные трансферты общего характера бюджетам субъектов Российской Федерации и муниципальных образований ",910,14,3,0,0,6735]
["Межбюджетные трансферты",910,14,3,5210000,0,92]
["Межбюджетные трансферты бюджетам муниципальных районов из бюджетов поселений и межбюджетные трансферты бюджетам поселений из бюджетов муниципальных районов на осуществление части полномочий по решению вопросов местного значения в соответствии с заключенными соглашениями",910,14,3,5210600,0,92]
["Иные межбюджетные трансферты",910,14,3,5210600,"017",92]
["Целевые программы муниципальных образований",910,14,3,7950000,0,6643]
["Долгосрочная целевая программа Черемховского районного муниципального образования \"Повышение эффективности бюджетных расходов Черемховского районного муниципального образования на 2012-2013 годы\"",910,14,3,7950200,0,6643]
["Иные межбюджетные трансферты",910,14,3,7950200,"017",6643]
["Комитет по управлению муниципальным имуществом ЧРМО",913,0,0,0,0,30856.799999999999]
["ОБЩЕГОСУДАРСТВЕННЫЕ ВОПРОСЫ",913,1,0,0,0,16688.3]
["Другие общегосударственные вопросы",913,1,13,0,0,16688.3]
["Руководство и управление в сфере установленных функций органов государственной власти субъектов Российской Федерации  и органов местного самоуправления",913,1,13,20000,0,3289.3]
["Центральный аппарат",913,1,13,20400,0,3289.3]
["Выполнение функций органами местного самоуправления",913,1,13,20400,"500",3289.3]
["Реализация государственных функций, связанных с общегосударственным управлением",913,1,13,920000,0,2849]
["Выполнение других обязательств государства",913,1,13,920300,0,2849]
["Выполнение функций органами местного самоуправления",913,1,13,920300,"500",2849]
["Учреждения по обеспечению хозяйственного обслуживания",913,1,13,930000,0,7889.4]
["Обеспечение деятельности подведомственных учреждений",913,1,13,939900,0,7889.4]
["Субсидии некоммерческим организациям",913,1,13,939900,"019",407.8]
["Субсидии бюджетным учреждениям на финансовое обеспечение муниципального задания на оказание муниципальных услуг (выполнение работ)",913,1,13,939900,"611",7481.2]
["Субсидии бюджетным учреждениям на иные цели",913,1,13,939900,"612",0.4]
["Погашение кредиторской задолженности учреждений, находящихся в ведении органов местного самоуправления муниципальных образований Иркутской области, по единому социальному налогу, зачисляемому в федеральный бюджет, Фонд социального страхования Российской Федерации, Федеральный фонд обязательного медицинского страхования и территориальные фонды обязательного медицинского страхования",913,1,13,5900000,0,0.6]
["Выполнение функций органами местного самоуправления",913,1,13,5900000,"500",0.6]
["Погашение кредиторской задолженности учреждений, находящихся в ведении органов местного самоуправления муниципальных образований Иркутской области по налоговым платежам, включая пени и штрафы, начисленные на задолженность по налоговым платежам и (или) по пеням и штрафам, начисленным на задолженность по страховым взносам на обязательное пенсионное страхование за период 2002-2009 годов, и (или) реструктурированной задолженности по страховым взносам в государственные внебюджетные фонды, образовавшейся до 1 января 2001 года, и (или) реструктурированной задолженности по единому социальному налогу, зачисляемому в федеральный бюджет, бюджеты государственных внебюджетных фондов, образовавшейся с 1 января 2002 года до 31 декабря 2009 года",913,1,13,5940000,0,0]
["Выполнение функций органами местного самоуправления",913,1,13,5940000,"500",0]
["Целевые программы муниципальных образований",913,1,13,7950000,0,2660]
["Выполнение функций органами местного самоуправления",913,1,13,7950000,"500",2660]
["НАЦИОНАЛЬНАЯ ЭКОНОМИКА",913,4,0,0,0,1440]
["Другие вопросы в области национальной экономики",913,4,12,0,0,1440]
["Целевые программы муниципальных образований",913,4,12,7950000,0,1440]
["Выполнение функций органами местного самоуправления",913,4,12,7950000,"500",1440]
["ЖИЛИЩНО-КОММУНАЛЬНОЕ ХОЗЯЙСТВО",913,5,0,0,0,5040.8]
["Жилищное хозяйство",913,5,1,0,0,273.89999999999998]
["Поддержка жилищного хозяйства",913,5,1,3500000,0,273.89999999999998]
["Капитальный ремонт государственного жилищного фонда субъектов Российской Федерации и муниципального жилищного фонда",913,5,1,3500200,0,273.89999999999998]
["Субсидии юридическим лицам",913,5,1,3500200,"006",174.9]
["Выполнение функций органами местного самоуправления",913,5,1,3500200,"500",99]
["Коммунальное хозяйство",913,5,2,0,0,3806.8]
["Поддержка коммунального хозяйства",913,5,2,3510000,0,3806.8]
["Мероприятия в области коммунального хозяйства",913,5,2,3510500,0,3806.8]
["Выполнение функций органами местного самоуправления",913,5,2,3510500,"500",3806.8]
["Другие вопросы в области жилищно-коммунального хозяйства",913,5,5,0,0,960.1]
["Руководство и управление в сфере установленных функций органов государственной власти субъектов Российской Федерации  и органов местного самоуправления",913,5,5,20000,0,960.1]
["Обеспечение деятельности подведомственных учреждений",913,5,5,29900,0,960.1]
["Субсидии некоммерческим организациям",913,5,5,29900,"019",48.4]
["Субсидии бюджетным учреждениям на финансовое обеспечение муниципального задания на оказание муниципальных услуг (выполнение работ)",913,5,5,29900,"611",911.6]
["Субсидии бюджетным учреждениям на иные цели",913,5,5,29900,"612",0.1]
["Социальная политика",913,10,0,0,0,5082.7]
["Охрана семьи и детства",913,10,4,0,0,5082.7]
["Руководство и управление в сфере установленных функций органов государственной власти субъектов Российской Федерации  и органов местного самоуправления",913,10,4,20000,0,3012.4]
["Осуществление областных государственных полномочий по обеспечению детей-сирот и детей, оставшихся без попечения родителей, лиц из числа детей-сирот и детей, оставшихся без попечения родителей, жилыми помещениями по договорам социального найма в Иркутской области",913,10,4,24800,0,3012.4]
["Содержание и обеспечение деятельности муниципальных служащих, осуществляющих областные государственные полномочия по обеспечению детей-сирот и детей, оставшихся без попечения родителей, лиц из числа детей-сирот и детей, оставшихся без попечения родителей, жилыми помещениями по договорам социального найма в Иркутской области",913,10,4,24801,0,22.7]
["Выполнение функций органами местного самоуправления",913,10,4,24801,"500",22.7]
["Обеспечение детей-сирот и детей, оставшихся без попечения родителей, лиц из числа детей-сирот и детей, оставшихся без попечения родителей, жилыми помещениями по договорам социального найма в Иркутской области",913,10,4,24802,0,2989.7]
["Бюджетные инвестиции",913,10,4,24802,"003",2989.7]
["Социальная помощь",913,10,4,5050000,0,2070.3000000000002]
["Федеральный закон от 21 декабря 1996 года N 159-ФЗ \"О дополнительных гарантиях по социальной поддержке детей-сирот и детей, оставшихся без попечения родителей\"",913,10,4,5052100,0,2070.3000000000002]
["Обеспечение жилыми помещениями детей-сирот, детей, оставшихся без попечения родителей, а также детей, находящихся под опекой (попечительством), не имеющих закрепленного жилого помещения",913,10,4,5052102,0,2070.3000000000002]
["Бюджетные инвестиции",913,10,4,5052102,"003",2070.3000000000002]
["СРЕДСТВА МАССОВОЙ ИНФОРМАЦИИ",913,12,0,0,0,2605]
["Периодическая печать и издательства",913,12,2,0,0,2605]
["Периодические издания, учрежденные органами законодательной и исполнительной власти",913,12,2,4570000,0,2605]
["Государственная поддержка в сфере культуры, кинематографии и средств массовой информации",913,12,2,4578500,0,2605]
["Субсидии юридическим лицам",913,12,2,4578500,"006",2605]
["Дума ЧРМО",916,0,0,0,0,1601.5]
["ОБЩЕГОСУДАРСТВЕННЫЕ ВОПРОСЫ",916,1,0,0,0,1601.5]
["Функционирование законодательных (представительных) органов государственной власти и представительных органов муниципальных образований",916,1,3,0,0,1601.5]
["Руководство и управление в сфере установленных функций органов государственной власти субъектов Российской Федерации  и органов местного самоуправления",916,1,3,20000,0,1599.8]
["Центральный аппарат",916,1,3,20400,0,638.20000000000005]
["Выполнение функций органами местного самоуправления",916,1,3,20400,"500",638.20000000000005]
["Председатель представительного органа муниципального образования",916,1,3,21100,0,961.6]
["Выполнение функций органами местного самоуправления",916,1,3,21100,"500",961.6]
["Погашение кредиторской задолженности учреждений, находящихся в ведении органов местного самоуправления муниципальных образований Иркутской области, по единому социальному налогу, зачисляемому в федеральный бюджет, Фонд социального страхования Российской Федерации, Федеральный фонд обязательного медицинского страхования и территориальные фонды обязательного медицинского страхования",916,1,3,5900000,0,1.7]
["Выполнение функций органами местного самоуправления",916,1,3,5900000,"500",1.7]
["Погашение кредиторской задолженности учреждений, находящихся в ведении органов местного самоуправления муниципальных образований Иркутской области по налоговым платежам, включая пени и штрафы, начисленные на задолженность по налоговым платежам и (или) по пеням и штрафам, начисленным на задолженность по страховым взносам на обязательное пенсионное страхование за период 2002-2009 годов, и (или) реструктурированной задолженности по страховым взносам в государственные внебюджетные фонды, образовавшейся до 1 января 2001 года, и (или) реструктурированной задолженности по единому социальному налогу, зачисляемому в федеральный бюджет, бюджеты государственных внебюджетных фондов, образовавшейся с 1 января 2002 года до 31 декабря 2009 года",916,1,3,5940000,0,0]
["Выполнение функций органами местного самоуправления",916,1,3,5940000,"500",0]
["Администрация ЧРМО",917,0,0,0,0,99860.2]
["ОБЩЕГОСУДАРСТВЕННЫЕ ВОПРОСЫ",917,1,0,0,0,34067.800000000003]
["Функционирование высшего должностного лица субъекта Российской Федерации и муниципального образования",917,1,2,0,0,2034.5]
["Руководство и управление в сфере установленных функций органов государственной власти субъектов Российской Федерации  и органов местного самоуправления",917,1,2,20000,0,2034.5]
["Глава муниципального образования",917,1,2,20300,0,2034.5]
["Выполнение функций органами местного самоуправления",917,1,2,20300,"500",2034.5]
["Функционирование Правительства Российской Федерации, высших исполнительных органов государственной власти субъектов Российской Федерации, местных администраций",917,1,4,0,0,28868.2]
["Руководство и управление в сфере установленных функций органов государственной власти субъектов Российской Федерации  и органов местного самоуправления",917,1,4,20000,0,28717.7]
["Центральный аппарат",917,1,4,20400,0,28717.7]
["Выполнение функций органами местного самоуправления",917,1,4,20400,"500",28717.7]
["Погашение кредиторской задолженности учреждений, находящихся в ведении органов местного самоуправления муниципальных образований Иркутской области, по единому социальному налогу, зачисляемому в федеральный бюджет, Фонд социального страхования Российской Федерации, Федеральный фонд обязательного медицинского страхования и территориальные фонды обязательного медицинского страхования",917,1,4,5900000,0,100.5]
["Выполнение функций органами местного самоуправления",917,1,4,5900000,"500",100.5]
["Погашение кредиторской задолженности учреждений, находящихся в ведении органов местного самоуправления муниципальных образований Иркутской области по налоговым платежам, включая пени и штрафы, начисленные на задолженность по налоговым платежам и (или) по пеням и штрафам, начисленным на задолженность по страховым взносам на обязательное пенсионное страхование за период 2002-2009 годов, и (или) реструктурированной задолженности по страховым взносам в государственные внебюджетные фонды, образовавшейся до 1 января 2001 года, и (или) реструктурированной задолженности по единому социальному налогу, зачисляемому в федеральный бюджет, бюджеты государственных внебюджетных фондов, образовавшейся с 1 января 2002 года до 31 декабря 2009 года",917,1,4,5940000,0,0]
["Выполнение функций органами местного самоуправления",917,1,4,5940000,"500",0]
["Целевые программы муниципальных образований",917,1,4,7950000,0,50]
["Долгосрочная целевая программа Черемховского районного муниципального образования \"Повышение эффективности бюджетных расходов Черемховского районного муниципального образования на 2012-2013 годы\"",917,1,4,7950200,0,50]
["Выполнение функций органами местного самоуправления",917,1,4,7950200,"500",50]
["Судебная система",917,1,5,0,0,7.5]
["Руководство и управление в сфере установленных функций",917,1,5,10000,0,7.5]
["Составление (изменение и дополнение) списков кандидатов в присяжные заседатели федеральных судов общей юрисдикции в Российской Федерации",917,1,5,14000,0,7.5]
["Выполнение функций органами местного самоуправления",917,1,5,14000,"500",7.5]
["Резервные фонды",917,1,11,0,0,0]
["Резервные фонды",917,1,11,700000,0,0]
["Резервные фонды местных администраций",917,1,11,700500,0,0]
["Прочие расходы",917,1,11,700500,"013",0]
["Другие общегосударственные вопросы",917,1,13,0,0,3157.6]
["Руководство и управление в сфере установленных функций органов государственной власти субъектов Российской Федерации  и органов местного самоуправления",917,1,13,20000,0,2469.4]
["Осуществление областных государственных полномочий по хранению, комплектованию, учету и использованию архивных документов, относящихся к государственной собственности Иркутской области",917,1,13,24000,0,1027]
["Выполнение функций органами местного самоуправления",917,1,13,24000,"500",1027]
["Осуществление областных государственных полномочий по определению персонального состава и обеспечению деятельности административных комиссий",917,1,13,24300,0,532.9]
["Выполнение функций органами местного самоуправления",917,1,13,24300,"500",532.9]
["Осуществление отдельных государственных полномочий в области производства и оборота этилового спирта, алкогольной и спиртосодержащей продукции",917,1,13,24400,0,376.6]
["Выполнение функций органами местного самоуправления",917,1,13,24400,"500",376.6]
["Осуществление отдельных областных государственных полномочий в области охраны труда",917,1,13,24500,0,532.9]
["Выполнение функций органами местного самоуправления",917,1,13,24500,"500",532.9]
["Реализация государственных функций, связанных с общегосударственным управлением",917,1,13,920000,0,633.20000000000005]
["Выполнение других обязательств государства",917,1,13,920300,0,633.20000000000005]
["Выполнение функций органами местного самоуправления",917,1,13,920300,"500",633.20000000000005]
["Целевые программы муниципальных образований",917,1,13,7950000,0,55]
["Выполнение функций органами местного самоуправления",917,1,13,7950000,"500",55]
["НАЦИОНАЛЬНАЯ БЕЗОПАСНОСТЬ И ПРАВООХРАНИТЕЛЬНАЯ ДЕЯТЕЛЬНОСТЬ",917,3,0,0,0,0]
["Другие вопросы в области национальной безопасности и правоохранительной деятельности",917,3,14,0,0,0]
["Реализация других функций, связанных с обеспечением национальной безопасности и правоохранительной деятельности",917,3,14,2470000,0,0]
["Выполнение функций органами местного самоуправления",917,3,14,2470000,"500",0]
["НАЦИОНАЛЬНАЯ ЭКОНОМИКА",917,4,0,0,0,1880.5]
["Другие вопросы в области национальной экономики",917,4,12,0,0,1880.5]
["Малое и среднее предпринимательство",917,4,12,3450000,0,240]
["Субсидии на государственную поддержку малого и среднего предпринимательства, включая крестьянские (фермерские) хозяйства",917,4,12,3450100,0,240]
["Субсидии юридическим лицам",917,4,12,3450100,"006",240]
["Региональные целевые программы",917,4,12,5220000,0,1524.5]
["Долгосрочная целевая программа «Поддержка и развитие малого и среднего предпринимательства в Иркутской области» на 2011-2012 годы",917,4,12,5222400,0,60]
["Субсидии юридическим лицам",917,4,12,5222400,"006",60]
["Долгосрочная целевая программа Иркутской области «Стимулирование жилищного строительства в Иркутской области на 2011-2015 годы»",917,4,12,5225700,0,1464.5]
["Подпрограмма \"Территориальное планирование муниципальных образований Иркутской области на 2011-2012 годы\"",917,4,12,5225701,0,1464.5]
["Выполнение функций органами местного самоуправления",917,4,12,5225701,"500",1464.5]
["Целевые программы муниципальных образований",917,4,12,7950000,0,116]
["Субсидии юридическим лицам",917,4,12,7950000,"006",16]
["Выполнение функций органами местного самоуправления",917,4,12,7950000,"500",100]
["ЖИЛИЩНО-КОММУНАЛЬНОЕ ХОЗЯЙСТВО",917,5,0,0,0,835.3]
["Жилищное хозяйство",917,5,1,0,0,370.7]
["Поддержка жилищного хозяйства",917,5,1,3500000,0,370.7]
["Мероприятия в области жилищного хозяйства",917,5,1,3500300,0,370.7]
["Выполнение функций органами местного самоуправления",917,5,1,3500300,"500",370.7]
["Коммунальное хозяйство",917,5,2,0,0,464.6]
["Резервные фонды",917,5,2,700000,0,464.6]
["Резервные фонды исполнительных органов государственной власти субъектов Российской Федерации",917,5,2,700400,0,164.6]
["Выполнение функций органами местного самоуправления",917,5,2,700400,"500",164.6]
["Резервные фонды местных администраций",917,5,2,700500,0,300]
["Выполнение функций органами местного самоуправления",917,5,2,700500,"500",300]
["Поддержка коммунального хозяйства",917,5,2,3510000,0,0]
["Мероприятия в области коммунального хозяйства",917,5,2,3510500,0,0]
["Выполнение функций органами местного самоуправления",917,5,2,3510500,"500",0]
["ОБРАЗОВАНИЕ",917,7,0,0,0,206]
["Молодежная политика и оздоровление детей",917,7,7,0,0,206]
["Организационно-воспитательная работа с молодежью",917,7,7,4310000,0,106]
["Проведение мероприятий для детей и молодежи",917,7,7,4310100,0,106]
["Выполнение функций органами местного самоуправления",917,7,7,4310100,"500",106]
["Целевые программы муниципальных образований",917,7,7,7950000,0,100]
["Выполнение функций органами местного самоуправления",917,7,7,7950000,"500",100]
["КУЛЬТУРА И КИНЕМАТОГРАФИЯ",917,8,0,0,0,430.1]
["Культура",917,8,1,0,0,430.1]
["Учреждения культуры и мероприятия в сфере культуры и кинематографии",917,8,1,4400000,0,430.1]
["Обеспечение деятельности подведомственных учреждений",917,8,1,4409900,0,430.1]
["Выполнение функций казенными учреждениями",917,8,1,4409900,"001",430.1]
["Погашение кредиторской задолженности учреждений, находящихся в ведении органов местного самоуправления муниципальных образований Иркутской области по налоговым платежам, включая пени и штрафы, начисленные на задолженность по налоговым платежам и (или) по пеням и штрафам, начисленным на задолженность по страховым взносам на обязательное пенсионное страхование за период 2002-2009 годов, и (или) реструктурированной задолженности по страховым взносам в государственные внебюджетные фонды, образовавшейся до 1 января 2001 года, и (или) реструктурированной задолженности по единому социальному налогу, зачисляемому в федеральный бюджет, бюджеты государственных внебюджетных фондов, образовавшейся с 1 января 2002 года до 31 декабря 2009 года",917,8,1,5940000,0,0]
["Выполнение функций казенными учреждениями",917,8,1,5940000,"001",0]
["ЗДРАВООХРАНЕНИЕ",917,9,0,0,0,56341.1]
["Стационарная медицинская помощь",917,9,1,0,0,29317.8]
["Руководство и управление в сфере установленных функций органов государственной власти субъектов Российской Федерации  и органов местного самоуправления",917,9,1,20000,0,14344.7]
["Осуществление отдельных областных государственных полномочий в области охраны здоровья граждан",917,9,1,25200,0,14344.7]
["Субсидии бюджетным учреждениям на финансовое обеспечение муниципального задания на оказание муниципальных услуг (выполнение работ)",917,9,1,25200,"611",14344.7]
["Реализация региональных программ модернизации здравоохранения субъектов Российской Федерации и программ модернизации федеральных государственных учреждений",917,9,1,960000,0,2552.5]
["Реализация программ модернизации здравоохранения субъектов Российской Федерации в части укрепления материально-технической базы медицинских учреждений",917,9,1,960100,0,1793.5]
["Реализация программ модернизации здравоохранения субъектов Российской Федерации в части укрепления материально-технической базы медицинских учреждений за счет средств бюджета территориального фонда обязательного медицинского страхования граждан Иркутской области",917,9,1,960101,0,1793.5]
["Субсидии бюджетным учреждениям на иные цели",917,9,1,960101,"612",1793.5]
["Реализация программ модернизации здравоохранения субъектов Российской Федерации в части внедрения современных информационных систем в здравоохранение в целях перехода на полисы обязательного медицинского страхования единого образца",917,9,1,960200,0,759]
["Реализация программ модернизации здравоохранения субъектов Российской Федерации в части внедрения современных информационных систем в здравоохранении в целях перехода на полисы обязательного медицинского страхования единого образца за счет средств бюджета территориального фонда обязательного медицинского страхования граждан  Иркутской области",917,9,1,960201,0,759]
["Субсидии бюджетным учреждениям на иные цели",917,9,1,960201,"612",759]
["Больницы, клиники, госпитали, медико-санитарные части",917,9,1,4700000,0,9459.7000000000007]
["Субсидии бюджетным учреждениям на финансовое обеспечение муниципального задания на оказание муниципальных услуг (выполнение работ)",917,9,1,4700000,"611",5916.7]
["Субсидии бюджетным учреждениям на иные цели",917,9,1,4700000,"612",3543]
["Погашение кредиторской задолженности учреждений, находящихся в ведении органов местного самоуправления муниципальных образований Иркутской области, по единому социальному налогу, зачисляемому в федеральный бюджет, Фонд социального страхования Российской Федерации, Федеральный фонд обязательного медицинского страхования и территориальные фонды обязательного медицинского страхования",917,9,1,5900000,0,52]
["Субсидии бюджетным учреждениям на иные цели",917,9,1,5900000,"612",52]
["Погашение кредиторской задолженности учреждений, находящихся в ведении органов местного самоуправления муниципальных образований Иркутской области по налоговым платежам, включая пени и штрафы, начисленные на задолженность по налоговым платежам и (или) по пеням и штрафам, начисленным на задолженность по страховым взносам на обязательное пенсионное страхование за период 2002-2009 годов, и (или) реструктурированной задолженности по страховым взносам в государственные внебюджетные фонды, образовавшейся до 1 января 2001 года, и (или) реструктурированной задолженности по единому социальному налогу, зачисляемому в федеральный бюджет, бюджеты государственных внебюджетных фондов, образовавшейся с 1 января 2002 года до 31 декабря 2009 года",917,9,1,5940000,0,0]
["Субсидии бюджетным учреждениям на финансовое обеспечение муниципального задания на оказание муниципальных услуг (выполнение работ)",917,9,1,5940000,"611",0]
["Субсидии бюджетным учреждениям на иные цели",917,9,1,5940000,"612",0]
["Целевые программы муниципальных образований",917,9,1,7950000,0,2908.9]
["Субсидии бюджетным учреждениям на финансовое обеспечение муниципального задания на оказание муниципальных услуг (выполнение работ)",917,9,1,7950000,"611",0]
["Долгосрочная целевая программа Черемховского районного муниципального образования \"Повышение эффективности бюджетных расходов Черемховского районного муниципального образования на 2012-2013 годы\"",917,9,1,7950200,0,2658.9]
["Субсидии бюджетным учреждениям на финансовое обеспечение муниципального задания на оказание муниципальных услуг (выполнение работ)",917,9,1,7950200,"611",2658.9]
["Долгосрочная целевая программа \"Неотложные меры по борьбе с туберкулезом\" на 2012-2014 годы",917,9,1,7950300,0,50]
["Субсидии бюджетным учреждениям на финансовое обеспечение муниципального задания на оказание муниципальных услуг (выполнение работ)",917,9,1,7950300,"611",50]
["Долгосрочная целевая программа \"Сахарный диабет\" на 2012-2014 годы",917,9,1,7950400,0,150]
["Субсидии бюджетным учреждениям на финансовое обеспечение муниципального задания на оказание муниципальных услуг (выполнение работ)",917,9,1,7950400,"611",150]
["Долгосрочная целевая программа \"Анти-вич/спид\" на 2012-2014 годы",917,9,1,7950500,0,50]
["Субсидии бюджетным учреждениям на финансовое обеспечение муниципального задания на оказание муниципальных услуг (выполнение работ)",917,9,1,7950500,"611",50]
["Амбулаторная помощь",917,9,2,0,0,13947.9]
["Руководство и управление в сфере установленных функций органов государственной власти субъектов Российской Федерации  и органов местного самоуправления",917,9,2,20000,0,2558.6]
["Осуществление отдельных областных государственных полномочий в области охраны здоровья граждан",917,9,2,25200,0,2558.6]
["Субсидии бюджетным учреждениям на финансовое обеспечение муниципального задания на оказание муниципальных услуг (выполнение работ)",917,9,2,25200,"611",2558.6]
["Реализация региональных программ модернизации здравоохранения субъектов Российской Федерации и программ модернизации федеральных государственных учреждений",917,9,2,960000,0,3141.5]
["Реализация программ модернизации здравоохранения субъектов Российской Федерации в части укрепления материально-технической базы медицинских учреждений",917,9,2,960100,0,3141.5]
["Реализация программ модернизации здравоохранения субъектов Российской Федерации в части укрепления материально-технической базы медицинских учреждений за счет средств бюджета территориального фонда обязательного медицинского страхования граждан Иркутской области",917,9,2,960101,0,3141.5]
["Субсидии бюджетным учреждениям на иные цели",917,9,2,960101,"612",3141.5]
["Поликлиники, амбулатории, диагностические центры",917,9,2,4710000,0,2151.6999999999998]
["Субсидии бюджетным учреждениям на финансовое обеспечение муниципального задания на оказание муниципальных услуг (выполнение работ)",917,9,2,4710000,"611",1342.3]
["Субсидии бюджетным учреждениям на иные цели",917,9,2,4710000,"612",809.4]
["Фельдшерско-акушерские пункты",917,9,2,4780000,0,1933]
["Субсидии бюджетным учреждениям на финансовое обеспечение муниципального задания на оказание муниципальных услуг (выполнение работ)",917,9,2,4780000,"611",1906.9]
["Субсидии бюджетным учреждениям на иные цели",917,9,2,4780000,"612",26.1]
["Иные безвозмездные и безвозвратные перечисления",917,9,2,5200000,0,3215]
["Денежные выплаты медицинскому персоналу фельдшерско-акушерских пунктов, врачам, фельдшерам и медицинским сестрам скорой медицинской помощи",917,9,2,5201800,0,3215]
["Субсидии бюджетным учреждениям на финансовое обеспечение муниципального задания на оказание муниципальных услуг (выполнение работ)",917,9,2,5201800,"611",3215]
["Целевые программы муниципальных образований",917,9,2,7950000,0,948.1]
["Субсидии бюджетным учреждениям на финансовое обеспечение муниципального задания на оказание муниципальных услуг (выполнение работ)",917,9,2,7950000,"611",0]
["Долгосрочная целевая программа Черемховского районного муниципального образования \"Повышение эффективности бюджетных расходов Черемховского районного муниципального образования на 2012-2013 годы\"",917,9,2,7950200,0,948.1]
["Субсидии бюджетным учреждениям на финансовое обеспечение муниципального задания на оказание муниципальных услуг (выполнение работ)",917,9,2,7950200,"611",948.1]
["Медицинская помощь в дневных стационарах всех типов",917,9,3,0,0,662.8]
["Больницы, клиники, госпитали, медико-санитарные части",917,9,3,4700000,0,185.6]
["Субсидии бюджетным учреждениям на финансовое обеспечение муниципального задания на оказание муниципальных услуг (выполнение работ)",917,9,3,4700000,"611",185.6]
["Целевые программы муниципальных образований",917,9,3,7950000,0,477.2]
["Долгосрочная целевая программа Черемховского районного муниципального образования \"Повышение эффективности бюджетных расходов Черемховского районного муниципального образования на 2012-2013 годы\"",917,9,3,7950200,0,477.2]
["Субсидии бюджетным учреждениям на финансовое обеспечение муниципального задания на оказание муниципальных услуг (выполнение работ)",917,9,3,7950200,"611",477.2]
["Скорая медицинская помощь",917,9,4,0,0,11804]
["Руководство и управление в сфере установленных функций органов государственной власти субъектов Российской Федерации  и органов местного самоуправления",917,9,4,20000,0,8358.5]
["Осуществление отдельных областных государственных полномочий в области охраны здоровья граждан",917,9,4,25200,0,8358.5]
["Субсидии бюджетным учреждениям на финансовое обеспечение муниципального задания на оказание муниципальных услуг (выполнение работ)",917,9,4,25200,"611",8358.5]
["Больницы, клиники, госпитали, медико-санитарные части",917,9,4,4700000,0,1409.5]
["Субсидии бюджетным учреждениям на финансовое обеспечение муниципального задания на оказание муниципальных услуг (выполнение работ)",917,9,4,4700000,"611",1409.5]
["Иные безвозмездные и безвозвратные перечисления",917,9,4,5200000,0,1718]
["Денежные выплаты медицинскому персоналу фельдшерско-акушерских пунктов, врачам, фельдшерам и медицинским сестрам скорой медицинской помощи",917,9,4,5201800,0,1718]
["Субсидии бюджетным учреждениям на финансовое обеспечение муниципального задания на оказание муниципальных услуг (выполнение работ)",917,9,4,5201800,"611",1718]
["Целевые программы муниципальных образований",917,9,4,7950000,0,318]
["Долгосрочная целевая программа Черемховского районного муниципального образования \"Повышение эффективности бюджетных расходов Черемховского районного муниципального образования на 2012-2013 годы\"",917,9,4,7950200,0,318]
["Субсидии бюджетным учреждениям на финансовое обеспечение муниципального задания на оказание муниципальных услуг (выполнение работ)",917,9,4,7950200,"611",318]
["Другие вопросы в области здравоохранения",917,9,9,0,0,608.6]
["Руководство и управление в сфере установленных функций органов государственной власти субъектов Российской Федерации  и органов местного самоуправления",917,9,9,20000,0,8.6]
["Центральный аппарат",917,9,9,20400,0,8.6]
["Выполнение функций органами местного самоуправления",917,9,9,20400,"500",8.6]
["Погашение кредиторской задолженности учреждений, находящихся в ведении органов местного самоуправления муниципальных образований Иркутской области по налоговым платежам, включая пени и штрафы, начисленные на задолженность по налоговым платежам и (или) по пеням и штрафам, начисленным на задолженность по страховым взносам на обязательное пенсионное страхование за период 2002-2009 годов, и (или) реструктурированной задолженности по страховым взносам в государственные внебюджетные фонды, образовавшейся до 1 января 2001 года, и (или) реструктурированной задолженности по единому социальному налогу, зачисляемому в федеральный бюджет, бюджеты государственных внебюджетных фондов, образовавшейся с 1 января 2002 года до 31 декабря 2009 года",917,9,9,5940000,0,0]
["Выполнение функций органами местного самоуправления",917,9,9,5940000,"500",0]
["Целевые программы муниципальных образований",917,9,9,7950000,0,600]
["Долгосрочная целевая программа \"Привлечение врачебных кадров в здравоохранение района\" на 2012-2014 годы",917,9,9,7950900,0,600]
["Субсидии бюджетным учреждениям на финансовое обеспечение муниципального задания на оказание муниципальных услуг (выполнение работ)",917,9,9,7950900,"611",0]
["Субсидии бюджетным учреждениям на иные цели",917,9,9,7950900,"612",600]
["Социальная политика",917,10,0,0,0,5314.4]
["Пенсионное обеспечение",917,10,1,0,0,2880.8]
["Доплаты к пенсиям, дополнительное пенсионное обеспечение ",917,10,1,4910000,0,2880.8]
["Доплаты к пенсиям государственных служащих субъектов Российской Федерации и муниципальных служащих ",917,10,1,4910100,0,2880.8]
["Социальные выплаты",917,10,1,4910100,"005",2880.8]
["Социальное обеспечение населения",917,10,3,0,0,1314.1]
["Федеральные целевые программы",917,10,3,1000000,0,166.8]
["Федеральная целевая программа \"Жилище\" на 2011 - 2015 годы",917,10,3,1008800,0,166.8]
["Подпрограмма \"Обеспечение жильем молодых семей\"",917,10,3,1008820,0,166.8]
["Социальные выплаты",917,10,3,1008820,"005",166.8]
["Реализация государственных функций в области социальной политики",917,10,3,5140000,0,832.1]
["Мероприятия в области социальной политики",917,10,3,5140100,0,832.1]
["Социальные выплаты",917,10,3,5140100,"005",832.1]
["Региональные целевые программы",917,10,3,5220000,0,190.7]
["Областная государственная социальная программа \"Молодым семьям - доступное жилье\" на 2005-2019 годы",917,10,3,5222200,0,190.7]
["Социальные выплаты",917,10,3,5222200,"005",190.7]
["Целевые программы муниципальных образований",917,10,3,7950000,0,124.5]
["Выполнение функций органами местного самоуправления",917,10,3,7950000,"500",124.5]
["Другие вопросы в области социальной политики",917,10,6,0,0,1119.5]
["Руководство и управление в сфере установленных функций органов государственной власти субъектов Российской Федерации  и органов местного самоуправления",917,10,6,20000,0,1019.5]
["Осуществление областных государственных полномочий по определению персонального состава и обеспечению деятельности районных (городских), районных в городах комиссий по делам несовершеннолетних и защите их прав",917,10,6,24100,0,1019.5]
["Выполнение функций органами местного самоуправления",917,10,6,24100,"500",1019.5]
["Целевые программы муниципальных образований",917,10,6,7950000,0,100]
["Выполнение функций органами местного самоуправления",917,10,6,7950000,"500",100]
["ФИЗИЧЕСКАЯ КУЛЬТУРА И СПОРТ",917,11,0,0,0,785]
["Физическая культура",917,11,1,0,0,785]
["Физкультурно-оздоровительная работа и спортивные мероприятия",917,11,1,5120000,0,485.9]
["Мероприятия в области спорта, физической культуры и туризма",917,11,1,5129700,0,485.9]
["Выполнение функций органами местного самоуправления",917,11,1,5129700,"500",485.9]
["Целевые программы муниципальных образований",917,11,1,7950000,0,299.10000000000002]
["Выполнение функций органами местного самоуправления",917,11,1,7950000,"500",299.10000000000002]
["Управление жилищно-коммунального хозяйства, строительства, транспорта, связи и экологии АЧРМО",918,0,0,0,0,34047.300000000003]
["ОБЩЕГОСУДАРСТВЕННЫЕ ВОПРОСЫ",918,1,0,0,0,859.5]
["Другие общегосударственные вопросы",918,1,13,0,0,859.5]
["Реализация государственных функций, связанных с общегосударственным управлением",918,1,13,920000,0,779.5]
["Выполнение других обязательств государства",918,1,13,920300,0,779.5]
["Выполнение функций органами местного самоуправления",918,1,13,920300,"500",779.5]
["Целевые программы муниципальных образований",918,1,13,7950000,0,80]
["Выполнение функций органами местного самоуправления",918,1,13,7950000,"500",80]
["НАЦИОНАЛЬНАЯ БЕЗОПАСНОСТЬ И ПРАВООХРАНИТЕЛЬНАЯ ДЕЯТЕЛЬНОСТЬ",918,3,0,0,0,0]
["Другие вопросы в области национальной безопасности и правоохранительной деятельности",918,3,14,0,0,0]
["Реализация других функций, связанных с обеспечением национальной безопасности и правоохранительной деятельности",918,3,14,2470000,0,0]
["Выполнение функций органами местного самоуправления",918,3,14,2470000,"500",0]
["НАЦИОНАЛЬНАЯ ЭКОНОМИКА",918,4,0,0,0,21316.799999999999]
["Другие вопросы в области национальной экономики",918,4,12,0,0,21316.799999999999]
["Мероприятия в области строительства, архитектуры и градостроительства",918,4,12,3380000,0,3711]
["Подготовка проектов генеральных планов муниципальных образований Черемховского районного муниципального образования",918,4,12,3380100,0,930.6]
["Выполнение функций органами местного самоуправления",918,4,12,3380100,"500",930.6]
["Подготовка проектов правил землепользования и застройки муниципальных образований Черемховского районного муниципального образования",918,4,12,3380200,0,2780.4]
["Выполнение функций органами местного самоуправления",918,4,12,3380200,"500",2780.4]
["Региональные целевые программы",918,4,12,5220000,0,17605.8]
["Долгосрочная целевая программа Иркутской области «Стимулирование жилищного строительства в Иркутской области на 2011-2015 годы»",918,4,12,5225700,0,17605.8]
["Подпрограмма \"Территориальное планирование муниципальных образований Иркутской области на 2011-2012 годы\"",918,4,12,5225701,0,17605.8]
["Выполнение функций органами местного самоуправления",918,4,12,5225701,"500",17605.8]
["ЖИЛИЩНО-КОММУНАЛЬНОЕ ХОЗЯЙСТВО",918,5,0,0,0,5471.9]
["Другие вопросы в области жилищно-коммунального хозяйства",918,5,5,0,0,5471.9]
["Руководство и управление в сфере установленных функций органов государственной власти субъектов Российской Федерации  и органов местного самоуправления",918,5,5,20000,0,5471.3]
["Центральный аппарат",918,5,5,20400,0,4741.3999999999996]
["Выполнение функций органами местного самоуправления",918,5,5,20400,"500",4741.3999999999996]
["Осуществление областных государственных полномочий по предоставлению гражданам субсидий на оплату жилых помещений и коммунальных услуг",918,5,5,24700,0,729.9]
["Содержание и обеспечение деятельности муниципальных служащих, осуществляющих областные государственные полномочия по предоставлению гражданам субсидий на оплату жилых помещений и коммунальных услуг",918,5,5,24701,0,729.9]
["Выполнение функций органами местного самоуправления",918,5,5,24701,"500",729.9]
["Погашение кредиторской задолженности учреждений, находящихся в ведении органов местного самоуправления муниципальных образований Иркутской области, по единому социальному налогу, зачисляемому в федеральный бюджет, Фонд социального страхования Российской Федерации, Федеральный фонд обязательного медицинского страхования и территориальные фонды обязательного медицинского страхования",918,5,5,5900000,0,0.6]
["Выполнение функций органами местного самоуправления",918,5,5,5900000,"500",0.6]
["Погашение кредиторской задолженности учреждений, находящихся в ведении органов местного самоуправления муниципальных образований Иркутской области по налоговым платежам, включая пени и штрафы, начисленные на задолженность по налоговым платежам и (или) по пеням и штрафам, начисленным на задолженность по страховым взносам на обязательное пенсионное страхование за период 2002-2009 годов, и (или) реструктурированной задолженности по страховым взносам в государственные внебюджетные фонды, образовавшейся до 1 января 2001 года, и (или) реструктурированной задолженности по единому социальному налогу, зачисляемому в федеральный бюджет, бюджеты государственных внебюджетных фондов, образовавшейся с 1 января 2002 года до 31 декабря 2009 года",918,5,5,5940000,0,0]
["Выполнение функций органами местного самоуправления",918,5,5,5940000,"500",0]
["Социальная политика",918,10,0,0,0,6399.1]
["Социальное обеспечение населения",918,10,3,0,0,6399.1]
["Руководство и управление в сфере установленных функций органов государственной власти субъектов Российской Федерации  и органов местного самоуправления",918,10,3,20000,0,6399.1]
["Осуществление областных государственных полномочий по предоставлению гражданам субсидий на оплату жилых помещений и коммунальных услуг",918,10,3,24700,0,6399.1]
["Предоставление гражданам субсидий на оплату жилых помещений и коммунальных услуг",918,10,3,24702,0,6399.1]
["Социальные выплаты",918,10,3,24702,"005",6399.1]
["МКУК \"Межпоселенческий культурный центр АЧРМО\"",919,0,0,0,0,7920.4]
["КУЛЬТУРА И КИНЕМАТОГРАФИЯ",919,8,0,0,0,7920.4]
["Культура",919,8,1,0,0,7920.4]
["Учреждения культуры и мероприятия в сфере культуры и кинематографии",919,8,1,4400000,0,5776.1]
["Обеспечение деятельности подведомственных учреждений",919,8,1,4409900,0,5776.1]
["Выполнение функций казенными учреждениями",919,8,1,4409900,"001",5776.1]
["Региональные целевые программы",919,8,1,5220000,0,1000]
["Долгосрочная целевая программа Иркутской области «100 модельных домов культуры Приангарью» на 2011-2013 годы",919,8,1,5225500,0,1000]
["Выполнение функций казенными учреждениями",919,8,1,5225500,"001",1000]
["Погашение кредиторской задолженности учреждений, находящихся в ведении органов местного самоуправления муниципальных образований Иркутской области, по единому социальному налогу, зачисляемому в федеральный бюджет, Фонд социального страхования Российской Федерации, Федеральный фонд обязательного медицинского страхования и территориальные фонды обязательного медицинского страхования",919,8,1,5900000,0,38]
["Выполнение функций казенными учреждениями",919,8,1,5900000,"001",38]
["Погашение кредиторской задолженности учреждений, находящихся в ведении органов местного самоуправления муниципальных образований Иркутской области по налоговым платежам, включая пени и штрафы, начисленные на задолженность по налоговым платежам и (или) по пеням и штрафам, начисленным на задолженность по страховым взносам на обязательное пенсионное страхование за период 2002-2009 годов, и (или) реструктурированной задолженности по страховым взносам в государственные внебюджетные фонды, образовавшейся до 1 января 2001 года, и (или) реструктурированной задолженности по единому социальному налогу, зачисляемому в федеральный бюджет, бюджеты государственных внебюджетных фондов, образовавшейся с 1 января 2002 года до 31 декабря 2009 года",919,8,1,5940000,0,0]
["Выполнение функций казенными учреждениями",919,8,1,5940000,"001",0]
["Целевые программы муниципальных образований",919,8,1,7950000,0,1106.3]
["Мероприятия по поддержке и развитию культуры, искусства, кинематографии",919,8,1,7950000,"023",554.79999999999995]
["Долгосрочная целевая программа Черемховского районного муниципального образования \"Повышение эффективности бюджетных расходов Черемховского районного муниципального образования на 2012-2013 годы\"",919,8,1,7950200,0,551.5]
["Выполнение функций казенными учреждениями",919,8,1,7950200,"001",551.5]
["МКУК \"Районный историко-краеведческий музей\"",920,0,0,0,0,1628.7]
["КУЛЬТУРА И КИНЕМАТОГРАФИЯ",920,8,0,0,0,1628.7]
["Культура",920,8,1,0,0,1628.7]
["Музеи и постоянные выставки",920,8,1,4410000,0,1389.6]
["Обеспечение деятельности подведомственных учреждений",920,8,1,4419900,0,1389.6]
["Выполнение функций казенными учреждениями",920,8,1,4419900,"001",1389.6]
["Погашение кредиторской задолженности учреждений, находящихся в ведении органов местного самоуправления муниципальных образований Иркутской области, по единому социальному налогу, зачисляемому в федеральный бюджет, Фонд социального страхования Российской Федерации, Федеральный фонд обязательного медицинского страхования и территориальные фонды обязательного медицинского страхования",920,8,1,5900000,0,11.3]
["Выполнение функций казенными учреждениями",920,8,1,5900000,"001",11.3]
["Погашение кредиторской задолженности учреждений, находящихся в ведении органов местного самоуправления муниципальных образований Иркутской области по налоговым платежам, включая пени и штрафы, начисленные на задолженность по налоговым платежам и (или) по пеням и штрафам, начисленным на задолженность по страховым взносам на обязательное пенсионное страхование за период 2002-2009 годов, и (или) реструктурированной задолженности по страховым взносам в государственные внебюджетные фонды, образовавшейся до 1 января 2001 года, и (или) реструктурированной задолженности по единому социальному налогу, зачисляемому в федеральный бюджет, бюджеты государственных внебюджетных фондов, образовавшейся с 1 января 2002 года до 31 декабря 2009 года",920,8,1,5940000,0,0]
["Выполнение функций казенными учреждениями",920,8,1,5940000,"001",0]
["Целевые программы муниципальных образований",920,8,1,7950000,0,227.8]
["Мероприятия по поддержке и развитию культуры, искусства, кинематографии",920,8,1,7950000,"023",39.200000000000003]
["Долгосрочная целевая программа Черемховского районного муниципального образования \"Повышение эффективности бюджетных расходов Черемховского районного муниципального образования на 2012-2013 годы\"",920,8,1,7950200,0,188.6]
["Выполнение функций казенными учреждениями",920,8,1,7950200,"001",188.6]
["МКУК \"Межпоселенческая библиотека Черемховского района\"",921,0,0,0,0,9573]
["КУЛЬТУРА И КИНЕМАТОГРАФИЯ",921,8,0,0,0,9573]
["Культура",921,8,1,0,0,9573]
["Учреждения культуры и мероприятия в сфере культуры и кинематографии",921,8,1,4400000,0,431]
["Комплектование книжных фондов библиотек муниципальных образований и государственных библиотек городов Москвы и Санкт-Петербурга",921,8,1,4400200,0,431]
["Комплектование книжных фондов библиотек муниципальных образований и государственных библиотек городов Москвы и Санкт-Петербурга за счет средств федерального бюджета",921,8,1,4400201,0,281]
["Выполнение функций казенными учреждениями",921,8,1,4400201,"001",281]
["Комплектование книжных фондов библиотек муниципальных образований и государственных библиотек городов Москвы и Санкт-Петербурга за счет областного бюджета",921,8,1,4400202,0,150]
["Выполнение функций казенными учреждениями",921,8,1,4400202,"001",150]
["Библиотеки",921,8,1,4420000,0,8022.9]
["Обеспечение деятельности подведомственных учреждений",921,8,1,4429900,0,8022.9]
["Выполнение функций казенными учреждениями",921,8,1,4429900,"001",8022.9]
["Погашение кредиторской задолженности учреждений, находящихся в ведении органов местного самоуправления муниципальных образований Иркутской области, по единому социальному налогу, зачисляемому в федеральный бюджет, Фонд социального страхования Российской Федерации, Федеральный фонд обязательного медицинского страхования и территориальные фонды обязательного медицинского страхования",921,8,1,5900000,0,65.099999999999994]
["Выполнение функций казенными учреждениями",921,8,1,5900000,"001",65.099999999999994]
["Погашение кредиторской задолженности учреждений, находящихся в ведении органов местного самоуправления муниципальных образований Иркутской области по налоговым платежам, включая пени и штрафы, начисленные на задолженность по налоговым платежам и (или) по пеням и штрафам, начисленным на задолженность по страховым взносам на обязательное пенсионное страхование за период 2002-2009 годов, и (или) реструктурированной задолженности по страховым взносам в государственные внебюджетные фонды, образовавшейся до 1 января 2001 года, и (или) реструктурированной задолженности по единому социальному налогу, зачисляемому в федеральный бюджет, бюджеты государственных внебюджетных фондов, образовавшейся с 1 января 2002 года до 31 декабря 2009 года",921,8,1,5940000,0,0]
["Выполнение функций казенными учреждениями",921,8,1,5940000,"001",0]
["Целевые программы муниципальных образований",921,8,1,7950000,0,1054]
["Мероприятия по поддержке и развитию культуры, искусства, кинематографии",921,8,1,7950000,"023",404.2]
["Мероприятия по повышению энергетической эффективности",921,8,1,7950000,"451",100]
["Долгосрочная целевая программа Черемховского районного муниципального образования \"Повышение эффективности бюджетных расходов Черемховского районного муниципального образования на 2012-2013 годы\"",921,8,1,7950200,0,549.79999999999995]
["Выполнение функций казенными учреждениями",921,8,1,7950200,"001",549.79999999999995]
["МКОУ ДОД \"ДШИ поселка Михайловка\"",922,0,0,0,0,6691.9]
["ОБРАЗОВАНИЕ",922,7,0,0,0,6691.9]
["Общее образование",922,7,2,0,0,6691.9]
["Учреждения по внешкольной работе с детьми",922,7,2,4230000,0,5819.4]
["Обеспечение деятельности подведомственных учреждений",922,7,2,4239900,0,5819.4]
["Выполнение функций казенными учреждениями",922,7,2,4239900,"001",5819.4]
["Погашение кредиторской задолженности учреждений, находящихся в ведении органов местного самоуправления муниципальных образований Иркутской области, по единому социальному налогу, зачисляемому в федеральный бюджет, Фонд социального страхования Российской Федерации, Федеральный фонд обязательного медицинского страхования и территориальные фонды обязательного медицинского страхования",922,7,2,5900000,0,0.4]
["Выполнение функций казенными учреждениями",922,7,2,5900000,"001",0.4]
["Погашение кредиторской задолженности учреждений, находящихся в ведении органов местного самоуправления муниципальных образований Иркутской области по налоговым платежам, включая пени и штрафы, начисленные на задолженность по налоговым платежам и (или) по пеням и штрафам, начисленным на задолженность по страховым взносам на обязательное пенсионное страхование за период 2002-2009 годов, и (или) реструктурированной задолженности по страховым взносам в государственные внебюджетные фонды, образовавшейся до 1 января 2001 года, и (или) реструктурированной задолженности по единому социальному налогу, зачисляемому в федеральный бюджет, бюджеты государственных внебюджетных фондов, образовавшейся с 1 января 2002 года до 31 декабря 2009 года",922,7,2,5940000,0,0]
["Выполнение функций казенными учреждениями",922,7,2,5940000,"001",0]
["Целевые программы муниципальных образований",922,7,2,7950000,0,872.1]
["Мероприятия в сфере образования",922,7,2,7950000,"022",241.6]
["Долгосрочная целевая программа Черемховского районного муниципального образования \"Повышение эффективности бюджетных расходов Черемховского районного муниципального образования на 2012-2013 годы\"",922,7,2,7950200,0,630.5]
["Выполнение функций казенными учреждениями",922,7,2,7950200,"001",630.5]
["Контрольно-счетная палата ЧРМО",923,0,0,0,0,1312.9]
["ОБЩЕГОСУДАРСТВЕННЫЕ ВОПРОСЫ",923,1,0,0,0,1312.9]
["Обеспечение деятельности финансовых, налоговых и таможенных органов и органов финансового (финансово-бюджетного) надзора",923,1,6,0,0,1312.9]
["Руководство и управление в сфере установленных функций органов государственной власти субъектов Российской Федерации  и органов местного самоуправления",923,1,6,20000,0,1312.9]
["Центральный аппарат",923,1,6,20400,0,615.1]
["Выполнение функций органами местного самоуправления",923,1,6,20400,"500",615.1]
["Руководитель контрольно-счетной палаты муниципального образования и его заместители",923,1,6,22500,0,697.8]
["Выполнение функций органами местного самоуправления",923,1,6,22500,"500",697.8]
["ИТОГО",{"$nulls":5},674916]
[]
["Начальник финансового управления",{"$nulls":4},"Ю.Н.Гайдук"]

{"sheet":"прил8","index":5,"n_rows":69,"n_cols":10,"rows_kept":69,"cut":false,"hidden":false,"merged":[[37,0,63,0],[37,1,63,1],[64,2,64,7],[12,2,15,2],[16,0,19,0],[16,1,19,1],[20,2,24,2],[26,2,33,2],[35,0,36,0],[35,1,36,1],[6,0,6,7],[7,6,7,7],[8,0,9,0],[8,1,9,1],[8,2,9,2],[8,3,8,6],[8,7,9,7]]}
[]
[]
[]
[]
[]
[]
["Программы, запланированные в бюджете  Черемховского районного муниципального образования   на  2012 год"]
[{"$nulls":6},"(тыс. рублей)"]
["№ п/п","Наименование программы","Исполнители","Бюджетная классификация",null,null,null,"сумма "]
[null,null,null,"ГРБС","РзПр","ЦСР","ВР"]
[1,2,3,4,5,6,7,8]
[1,"Вакцинопрофилактика на 2012-2014 гг.","МБУЗ Михайловская ЦРБ",903,"0901",7950000,"079",50]
[2,"Неотложные меры по борьбе с туберкулезом на 2012-2014 гг.","Администрация ЧРМО (в рамках финансового обеспечения муниципального задания МБУЗ Михайловская ЦРБ)",917,"0901",7950300,"611",50]
[3,"Сахарный диабет на 2012-2014 гг.",null,917,"0901",7950400,"611",150]
[4,"Анти-ВИЧ/СПИД на 2012-2014 гг.",null,917,"0901",7950500,"611",50]
[5,"Привлечение врачебных кадров в здравоохранение района на 2012-2014 гг.",null,917,"0909",7950900,"612",600]
[6,"Развитие культуры в Черемховском районном муниципальном образовании на период 2012-2016 гг.","РМУК Черемховская межпоселенческая центральная библиотека",921,"0801",7950000,"023",307.89999999999998]
[null,null,"МОУ ДОД \"ДШИ поселка Михайловка\"",922,"0802",7950000,"022",241.6]
[null,null,"МУК \"Районный историко-краеведческий музей\"",920,"0801",7950000,"023",78]
[null,null,"МУК \"Межпоселенческий культурный центр АЧРМО\"",919,"0801",7950000,"023",612.4]
[7,"Ветхие школы Черемховского района на 2011-2013 гг.","Отдел образования АЧРМО",907,"0702",7950000,"022",490]
[8,"Совершенствование дошкольного образования Черемховского района на 2011-2014 гг.",null,907,"0701",7950000,"022",350]
[9,"Совершенствование организации питания в образовательных учреждениях Черемховского района на 2011-2013 гг.",null,907,"0702",7950000,"022",1150]
[10,"Развитие дошкольного образования на 2011-2014 гг.",null,907,"0701",7950000,"022",637]
[11,"\"Безопасность образовательных учреждений\" 2010-2014гг.",null,907,"0701, 0702",7950000,"450",1700,null," "]
[12,"Инвентаризация муниципальных объектов недвижимости Черемховского районного муниципального образования на 2012-2014 годы","КУМИ",913,"0113, 0412",7950000,"500",4100]
[13,"Молодым семьям доступное жилье на 2005-2019гг.","Администрация ЧРМО ",917,1003,7950000,500,124.5]
[14,"Комплексные меры профилактики злоупотребления наркотическими средствами, психотропними веществами на 2011-2013 гг.",null,917,"0707",7950000,500,10]
[15,"Молодежная политика в Черемховском районном муниципальном образовании на 2010-2012  ",null,917,"0707",7950000,500,90]
[16,"Развитие физической культуры, спорта и туризма в Черемховском районном муниципальном образовании на 2011-2013гг.",null,917,"1101",7950000,500,299.10000000000002]
[17,"Поддержка и развитие малого и среднего предпринимательства в Черемховском районе на 2011-2012 гг.",null,917,"0412",7950000,500,116]
[18,"Поддержка, проводимых мероприятий, посвященных Дням славы, памятным датам России и работе с ветеранами в Черемховском районе на 2012 год",null,917,"0405",7950000,500,100]
[19,"Улучшение условий и охраны труда в Черемховском районе на 2011-2013 гг",null,917,"0113",7950000,500,15]
[20,"Комплексная программа профилактики правонарушений Черемховского районного муниципального образования на 2009-2012 гг.",null,917,"0113",7950000,500,40]
[21,"Повышение безопасности дорожного движения в Черемховском районе в 2007-2012 гг.","Управление ЖКХ",918,"0113",7950000,500,80]
[22,"Программа повышения энергетической эффективности Черемховского районного муниципального образования на 2010-2015 гг","Отдел образования АЧРМО",907,"0701, 0702",7950000,"451",600]
[null,null,"РМУК Черемховская межпоселенческая центральная библиотека",921,"0801",7950000,"451",100]
[23,"Повышение эффективности бюджетных расходов Черемховского районного муниципального образования на 2012-2013 годы","Финансовое управление АЧРМО",910,"0106, 0113",7950200,"500, 001",2284.8000000000002]
[null,null,"Администрация ЧРМО ",917,"0104",7950200,"500",50]
[null,null,"Отдел образования АЧРМО",907,"0701, 0702",7950200,"001",18064.7]
[null,null,"Администрация ЧРМО (в рамках финансового обеспечения муниципального задания МБУЗ Михайловская ЦРБ)",917,"0901, 0902",7950200,"611",4402.2]
[null,null,"МКУК \"Межпоселенческий культурный центр АЧРМО\"",919,"0801",7950200,"001",551.4]
[null,null,"МКУК \"Районный историко-краеведческий музей\"",920,"0801",7950200,"001",188.6]
[null,null,"МКУК \"Межпоселенческая библиотека Черемховского района\"",921,"0801",7950200,"001",549.79999999999995]
[null,null,"МКОУ ДОД \"ДШИ поселка Михайловка\"",922,"0702",7950200,"001",630.5]
[null,null,"Муниципальные образования района, Всего, в том числе",{"$nulls":4},{"$f":"SUM(H47:H64)","v":6643}]
[null,null,"Алехинское сельское поселение",910,"1403",7950200,"017",540]
[null,null,"Бельское сельское поселение",910,"1403",7950200,"017",155]
[null,null,"Булайское сельское поселение",910,"1403",7950200,"017",390]
[null,null,"Голуметское сельское поселение",910,"1403",7950200,"017",370]
[null,null,"Зерновское сельское поселение",910,"1403",7950200,"017",459]
[null,null,"Каменно-Ангарское сельское поселение",910,"1403",7950200,"017",285]
[null,null,"Лоховское сельское поселение",910,"1403",7950200,"017",474]
[null,null,"Михайловское городское поселение",910,"1403",7950200,"017",468]
[null,null,"Нижнеиретское сельское поселение",910,"1403",7950200,"017",280]
[null,null,"Новогромовское сельское поселение",910,"1403",7950200,"017",293]
[null,null,"Новостроевское сельское поселение",910,"1403",7950200,"017",313]
[null,null,"Онотское сельское поселение",910,"1403",7950200,"017",288]
[null,null,"Парфеновское сельское поселение",910,"1403",7950200,"017",355]
[null,null,"Саянское сельское поселение",910,"1403",7950200,"017",471]
[null,null,"Тальниковское сельское поселение",910,"1403",7950200,"017",279]
[null,null,"Тунгусское сельское поселение",910,"1403",7950200,"017",330]
[null,null,"Узколугское сельское поселение",910,"1403",7950200,"017",544]
[null,null,"Черемховское сельское поселение",910,"1403",7950200,"017",349]
[null,"Всего:",{"$f":"SUM(H12:H46)","v":45506.5}]
[]
[]
[]
["Начальник финансового управления",{"$nulls":6},"Ю.Н. Гайдук"]

{"sheet":"прил12 ","index":6,"n_rows":16,"n_cols":7,"rows_kept":16,"cut":false,"hidden":false,"merged":[[6,0,6,6]]}
[]
[]
[]
[]
[]
[]
["Программа муниципальных внутренних заимствований Черемховского районного муниципального образования на 2012 год"]
[{"$nulls":6},"(тыс.рублей)"]
["Виды долговых обязательств ","Объем государственного долга на 1 января 2012 года","Объем привлечения в 2012 году","Объем погашения в 2012 году","Верхний предел государственного долга на 1 января 2013 года ","Списание кредитов в 2012г","Верхний предел долга на 1 января 2013 года"]
["Объем заимствований, всего",{"$f":"SUM(B12:B13)","v":42196.06222},{"$f":"SUM(C12:C13)","v":4250.6000000000004},{"$f":"SUM(D12:D13)","v":421.96062000000001},{"$f":"SUM(E12:E13)","v":0},null,{"$f":"SUM(G12:G13)","v":4250.6000000000004}]
["в том числе:"]
["2. Кредиты кредитных организаций в валюте Российской Федерации сроком до 3-х лет",null,4250.6000000000004,null,null,null,{"$f":"B12+C12-D12","v":4250.6000000000004}]
["3. Бюджетные кредиты от других бюджетов бюджетной системы Российской Федерации ",42196.06222,null,421.96062000000001,null,41774.101600000002,{"$f":"B13+C13-D13-F13","v":0}]
[]
[]
["Начальник финансового управления",null,null,"Ю.Н. Гайдук"]

{"sheet":"прил13","index":7,"n_rows":35,"n_cols":6,"rows_kept":35,"cut":false,"hidden":false,"merged":[[7,0,7,2]]}
{"$rows_empty":7}
["Источники внутреннего финансирования\n дефицита  бюджета Черемховского районного муниципального образования  на  2012 год"]
[]
[null,null,"(тыс.рублей)"]
["Наименование","Код","План  год"]
["Источники внутреннего финансирования дефицита бюджета","000 01 00 00 00 00 0000 000",20217.5]
["Источники внутреннего финансирования дефицита бюджета","000 01 00 00 00 00 0000 000",{"$f":"C14+C19","v":3828.6393800000005}]
["Кредиты кредитных организаций в валюте Российской Федерации","910 01 02 00 00 00 0000 000",{"$f":"C15-C17","v":4250.6000000000004}]
["Получение кредитов от кредитных организаций в валюте Российской Федерации","910 01 02 00 00 00 0000 700",{"$f":"C16","v":4250.6000000000004}]
["Кредиты, полученные  от кредитных организаций бюджетами муниципальных районов в валюте Российской Федерации","910 01 02 00 00 05 0000 710",4250.6000000000004]
["Погашение кредитов, предоставленных кредитными организациями в валюте Российской Федерации","910 01 02 00 00 00 0000 800",{"$f":"C18","v":0}]
["Погашение бюджетами муниципальных районов кредитов от кредитных организаций в валюте Российской Федерации","910 01 02 00 00 05 0000 810",0]
["Бюджетные кредиты от других бюджетов бюджетной системы Российской Федерации ","910 01 03 00 00 00 0000 000",-421.96062000000001]
["Получение бюджетных кредитов от других бюджетов бюджетной системы Российской Федерации в валюте Российской Федерации","910 01 03 00 00 00 0000 700",{"$f":"C21","v":0}]
["Получение кредитов от других бюджетов бюджетной системы Российской Федерации бюджетами муниципальных районов в валюте Российской Федерации","910 01 03 00 00 05 0000 710",0]
["Погашение бюджетных кредитов, полученных от других бюджетов бюджетной системы Российской Федерации в валюте Российской Федерации","910 01 03 00 00 00 0000 800",{"$f":"C23","v":-421.96062000000001}]
["Погашение бюджетами муниципальных районов кредитов от других бюджетов бюджетной системы Российской Федерации в валюте Российской Федерации","910 01 03 00 00 05 0000 810",-421.96062000000001]
["Изменение остатков средств на счетах по учету средств бюджетов","000 01 05 00 00 00 0000 000",{"$f":"C25+C29","v":16388.900000000023}]
["Увеличение остатков средств бюджетов","000 01 05 00 00 00 0000 500",{"$f":"C26","v":-658949.1}]
["Увеличение прочих остатков  средств бюджетов","000 01 05 02 00 00 0000 500",{"$f":"C27","v":-658949.1}]
["Увеличение прочих остатков денежных средств бюджетов","000 01 05 02 01 00 0000 510",{"$f":"C28","v":-658949.1}]
["Увеличение прочих остатков денежных средств бюджетов муниципальных районов ","000 01 05 02 01 05 0000 510",-658949.1]
["Уменьшение остатков средств бюджетов","000 01 05 00 00 00 0000 600",{"$f":"C30","v":675338}]
["Уменьшение прочих остатков средств бюджетов","000 01 05 02 00 00 0000 600",{"$f":"C31","v":675338}]
["Уменьшение прочих остатков денежных средств бюджетов","000 01 05 02 01 00 0000 610",{"$f":"C32","v":675338}]
["Уменьшение прочих остатков денежных средств бюджетов муниципальных районов","000 01 05 02 01 05 0000 610",675338]
[]
[]
["Начальник финансового управления",null,"Ю.Н. Гайдук",null,null,{"$f":"[1]прил.1!D111-[1]прил5!F393","v":-20971.418000000063}]